Cogmind - Beta 15 @@@ ROGUE MODE // 2025.09.30 @ 16:06:15 Player: Dosh Result: Destroyed 0b10! Performance ------------- Evolutions (9) 4500 Regions Visited (34) 6800 Robots Destroyed (938) 4690 Value Destroyed (56482) 56482 Prototype IDs (79) 1580 Alien Tech Used (1) 200 Bonus (48282) 48282 TOTAL SCORE: 122534 Bonus ------- Triggered High Security 500 High Alert Combat Kills 17946 Follower Combat Kills 10662 Entered Garrisons 2400 Used RIF Installer 6500 Aligned with FarCom 300 Scanned by Researcher 500 Met Sigix 2000 Escaped with Sigix 5000 Win 3000 Friendly Fire -526 Cogmind --------- Core Integrity 1234/1600 Matter 258/300 Energy 734/755 System Corruption 47% Temperature Cool (-168) Movement Treading (163) Location Tau Ceti IV Orbit Parts ------- > --- POWER (4) -------- Antimatter Reactor Light Quantum Reactor Light Quantum Reactor (fused) Improved Quantum Reactor (fused) > --- PROPULSION (6) --- Armored Heavy Treads (fused) Advanced Heavy Siege Treads Advanced Heavy Siege Treads > --- UTILITY (12) ----- Advanced Cryofiber Web (fused) Advanced Heat Sink Advanced Heat Sink (fused) Advanced Heat Sink Advanced Heat Sink (fused) Experimental Heat Sink Huge Storage Unit Advanced Launcher Guidance Computer Quantum Capacitor Layered Medium Armor Plating Advanced Force Field > --- WEAPON (3) ------- Enhanced Force Rifle Null Cannon (fused) > --- INVENTORY (25) --- Antimatter Reactor Light Quantum Reactor Armored Heavy Treads Advanced Heat Sink Advanced Recoil Stabilizer Precision Matter Filter Precision Energy Filter Advanced Reaction Control System Layered Medium Armor Plating Improved Remote Force Field Relay Coupler [Grunt] (33) Long-range Tractor Beam Drone Bay (0/2) Compact HERF Cannon Enhanced Nova Cannon Enhanced Nova Cannon Enhanced Nova Cannon Hypervelocity Multirail Gamma Bomb Array Fusion Bomb Launcher Fusion Bomb Launcher Advanced Remote Datajack Sigix Containment Pod Peak State ------------ > --- POWER ------------ Antimatter Reactor Heavy Antimatter Reactor Light Quantum Reactor Light Quantum Reactor > --- PROPULSION ------- Armored Heavy Treads Armored Heavy Treads Enhanced Armored Heavy Treads > --- UTILITY ---------- Advanced Power Amplifier Advanced Cryofiber Web Advanced Heat Sink Huge Storage Unit Advanced Launcher Guidance Computer Precision Energy Filter Quantum Capacitor Layered Heavy Armor Plating Improved Remote Force Field Relay Coupler [Grunt] > --- WEAPON ----------- Null Cannon Gamma Bomb Array Gamma Bomb Array > --- INVENTORY -------- Antimatter Reactor Armored Heavy Treads Advanced Heat Sink Advanced Heat Sink Advanced Heat Sink Experimental Heat Sink Precision Matter Filter Relay Coupler [Grunt] Long-range Tractor Beam Drone Bay Compact HERF Cannon Compact HERF Cannon Enhanced Nova Cannon Hypervelocity Multirail Gamma Bomb Array Fusion Bomb Launcher Advanced Remote Datajack Sigix Containment Pod [Rating: 200] Favorites ----------- Power Light Quantum Reactor Engine Cooled Deuterium Engine Power Core Enhanced Nuclear Core Reactor Light Quantum Reactor Propulsion Light Treads Treads Light Treads Wheel Armored Huge Wheel Utility Huge Storage Unit Device Advanced Heat Sink Storage Huge Storage Unit Processor Advanced Launcher Guidance Computer Hackware Relay Coupler [Grunt] Protection Improved Heavy Armor Plating Weapon Enhanced Nova Cannon Energy Gun Gatling Laser Energy Cannon Enhanced Nova Cannon Ballistic Gun Improved Assault Rifle Ballistic Cannon Heavy Linear Accelerator Launcher Gamma Bomb Array Special Weapon Advanced Remote Datajack Impact Weapon Mace Special Melee Weapon Improved Datajack Build | -11 -10 -9 -9 -9 -8 -8 -8 -8 -8 -7 -7 -7 -7 -7 -7 -7 -7 -6 -6 -5 -5 -4 -4 -4 -4 -4 -4 -3 -3 -3 -3 -2 -2 -1 ------- Run | Yrd Mat Mat Min Exi Min Mat Gar Mat Gar Fac Was Fac Gar Fac Gar Fac Gar Fac Gar Fac Gar Fac Gar Fac Gar Fac Gar Res Gar Qua Gar Res Tes Acc Slots Evolved 18 | . . 2 . . . 2 . . . 2 . . . . . . . 2 . 2 . 2 . . . . . 2 . . . 2 . 2 Power 3 | . . . . . . . . . . . . . . . . . . 1 . . . . . . . . . 1 . . . . . 1 Propulsion 4 | . . 1 . . . 1 . . . . . . . . . . . . . 1 . 1 . . . . . . . . . . . . Utility 10 | . . 1 . . . 1 . . . 2 . . . . . . . . . 1 . 1 . . . . . 1 . . . 2 . 1 Weapon 1 | . . . . . . . . . . . . . . . . . . 1 . . . . . . . . . . . . . . . . Parts Attached 415 | 6 9 24 3 2 2 18 12 10 3 10 7 3 11 14 15 7 23 15 13 14 19 8 11 8 10 2 19 14 12 12 9 28 12 30 Power 44 | 1 1 1 . 1 . 4 . 1 . 1 1 . . 2 2 . 1 4 1 . 1 . 2 . . . 2 3 . 2 . 3 3 7 Engine 18 | 1 1 1 . 1 . 4 . 1 . . . . . 2 1 . 1 4 1 . . . . . . . . . . . . . . . Core 1 | . . . . . . . . . . 1 . . . . . . . . . . . . . . . . . . . . . . . . Reactor 25 | . . . . . . . . . . . 1 . . . 1 . . . . . 1 . 2 . . . 2 3 . 2 . 3 3 7 Propulsion 80 | 2 2 12 1 . 1 4 4 4 1 4 2 . 2 2 2 . 3 2 2 1 5 1 1 . . 1 3 5 1 3 . 4 1 4 Treads 79 | 2 2 12 1 . 1 3 4 4 1 4 2 . 2 2 2 . 3 2 2 1 5 1 1 . . 1 3 5 1 3 . 4 1 4 Leg . | . . . . . . . . . . . . . . . . . . . . . . . . . . . . . . . . . . . Wheel 1 | . . . . . . 1 . . . . . . . . . . . . . . . . . . . . . . . . . . . . Hover . | . . . . . . . . . . . . . . . . . . . . . . . . . . . . . . . . . . . Flight . | . . . . . . . . . . . . . . . . . . . . . . . . . . . . . . . . . . . Utility 207 | 1 2 4 2 1 1 7 5 3 2 3 2 2 5 8 9 5 15 9 7 8 10 6 6 8 7 1 10 4 9 4 8 16 1 16 Device 62 | . . . . 1 . 2 2 1 1 3 1 . 3 1 . 1 3 . . 1 2 2 . 2 2 . 5 1 5 2 1 8 . 12 Storage 6 | 1 1 1 1 . . . . . . . . . . 1 . . . . . . . . . 1 . . . . . . . . . . Processor 6 | . 1 . . . . . . . . . 1 . . . . . . . . . . . . . . . . . . . 1 3 . . Hackware 93 | . . . . . . 1 . 2 . . . 2 1 4 7 4 5 7 6 7 5 4 6 5 5 1 2 3 3 2 6 3 1 1 Protection 40 | . . 3 1 . 1 4 3 . 1 . . . 1 2 2 . 7 2 1 . 3 . . . . . 3 . 1 . . 2 . 3 Artifact . | . . . . . . . . . . . . . . . . . . . . . . . . . . . . . . . . . . . Weapon 84 | 2 4 7 . . . 3 3 2 . 2 2 1 4 2 2 2 4 . 3 5 3 1 2 . 3 . 4 2 2 3 1 5 7 3 Energy Gun 13 | 1 . . . . . 2 2 1 . 1 1 1 . 1 . 1 . . . . . . . . . . 1 . . . . . . 1 Energy Cannon 20 | . . . . . . . . . . . . . . . . . . . . 3 2 1 1 . 1 . 2 1 1 1 . 2 4 1 Ballistic Gun 20 | 1 4 5 . . . 1 . . . . 1 . 3 . 2 . 2 . . . . . . . . . . . . . . . 1 . Ballistic Cannon 4 | . . . . . . . . . . . . . . . . . 1 . 3 . . . . . . . . . . . . . . . Launcher 10 | . . 1 . . . . 1 . . . . . . 1 . . 1 . . 1 . . . . 1 . . . 1 . . 1 1 1 Special Weapon 14 | . . . . . . . . . . 1 . . 1 . . 1 . . . 1 . . 1 . 1 . 1 1 . 2 1 2 1 . Impact Weapon 2 | . . 1 . . . . . . . . . . . . . . . . . . 1 . . . . . . . . . . . . . Slashing Weapon . | . . . . . . . . . . . . . . . . . . . . . . . . . . . . . . . . . . . Piercing Weapon . | . . . . . . . . . . . . . . . . . . . . . . . . . . . . . . . . . . . Special Melee Weapon 1 | . . . . . . . . 1 . . . . . . . . . . . . . . . . . . . . . . . . . . Unidentified Prototypes 20 | . . 2 . . . 1 . . . 1 . . . 1 . . . 1 . 1 . 2 . 1 . . . 2 . . . 1 5 2 Corrupted Parts 6 | . . . . . . . . . . . . . . . . . . . . . . . . . . . . . . 1 . . 2 3 System Corruption 43 | . . . . . . . . . . . . . . . . . . . . . . . . . . . . . . 6 . . 20 17 Parts Lost 71 | . 2 2 . . 2 10 3 2 1 1 . . 2 6 1 . 3 . 4 . . . . . . . 4 . . 2 2 2 2 20 Power 10 | . . . . . . . . . . . . . . . . . 1 . . . . . . . . . 1 . . . 1 . . 7 Propulsion 16 | . 1 2 . . 1 3 1 2 . . . . . 2 . . . . 1 . . . . . . . 1 . . . . . . 2 Utility 31 | . . . . . 1 4 1 . 1 1 . . 1 3 1 . 2 . 2 . . . . . . . . . . 2 1 1 2 8 Weapon 14 | . 1 . . . . 3 1 . . . . . 1 1 . . . . 1 . . . . . . . 2 . . . . 1 . 3 Highest Loss Streak 4 | . 2 1 . . 1 3 3 1 1 1 . . 1 3 1 . 1 . 1 . . . . . . . 1 . . 1 2 1 1 4 To Critical Strikes 1 | . . . . . . . . . . . . . 1 . . . . . . . . . . . . . . . . . . . . . Average Backups 20 | . 9 17 20 21 19 20 21 18 21 22 22 22 22 21 22 23 22 20 22 21 21 21 21 20 21 23 22 22 21 21 19 19 18 17 Power 1 | . 2 2 2 1 2 3 2 2 2 2 2 2 2 1 2 2 1 1 1 1 1 2 1 2 2 2 1 2 1 1 . 1 2 1 Propulsion 2 | . 1 4 4 6 5 6 4 3 4 3 3 3 2 1 1 2 2 2 2 1 1 1 1 1 1 1 1 1 1 1 1 1 2 . Utility 10 | . 2 5 7 7 7 7 9 7 9 10 10 10 11 12 12 13 12 12 13 15 14 13 12 10 12 13 12 11 12 13 11 10 9 8 Weapon 4 | . 3 4 6 5 5 3 4 3 4 5 6 5 5 5 5 5 5 3 2 4 3 4 6 5 5 6 5 6 5 5 5 4 4 6 Tool/Special . | . . . . . . . . . . . . . . . . . . . . . . . . . . . . . . . . . . . Unused Backups 74 | . . 8 . 1 . . 5 1 1 1 2 . 3 1 6 . 1 . 5 1 4 . 1 . 6 1 2 5 5 . . 5 1 8 Power 11 | . . 2 . . . . . . . . . . . . 1 . . . . . . . . . . . . 2 1 . . 3 . 2 Propulsion 10 | . . 3 . . . . . 1 . . 2 . 2 . . . . . . . 1 . . . . . . 1 . . . . . . Utility 41 | . . 2 . . . . 5 . 1 . . . 1 1 2 . 1 . 5 . 3 . 1 . 6 1 2 1 3 . . 2 1 3 Weapon 10 | . . 1 . 1 . . . . . 1 . . . . 3 . . . . . . . . . . . . 1 . . . . . 3 Tool/Special 2 | . . . . . . . . . . . . . . . . . . . . 1 . . . . . . . . 1 . . . . . Average Slot Usage (%) 83 | . 95 98 100 97 99 86 82 89 90 89 84 76 75 77 82 83 81 77 77 79 81 77 77 77 77 77 80 81 79 79 79 78 77 78 Engine 4 | . 14 11 11 11 11 9 8 9 9 6 5 . . 6 3 . 3 6 12 10 8 5 1 . . . . . . . . . . . Reactor 6 | . . . . . . . . . . . 1 7 7 . 3 7 3 4 . . 2 5 8 10 10 10 10 14 14 14 14 12 13 15 Treads 19 | . 28 33 33 33 32 17 22 35 36 30 24 15 15 15 14 15 15 13 13 15 17 14 15 15 15 14 15 15 14 14 14 13 12 12 Device 12 | . . . . . . 8 7 7 9 20 15 9 13 11 11 5 5 1 . 1 8 11 11 9 11 10 16 18 19 19 19 21 23 28 Storage 6 | . 14 11 11 11 11 9 9 9 9 7 7 7 7 7 7 7 7 6 6 5 5 5 5 5 5 5 5 4 4 4 4 4 4 4 Processor 1 | . 9 4 . . . . . . . . 5 . . . . . . . . . . . . . . . . . . . 1 3 4 4 Hackware 7 | . . . . . . 6 4 1 . . . 13 8 11 15 18 14 21 20 20 12 13 13 15 13 15 10 12 10 12 11 4 1 1 Protection 7 | . . 15 22 19 21 10 7 9 9 7 7 7 6 7 9 12 15 8 10 4 4 5 5 5 5 5 4 . 1 . . 3 4 3 Energy Gun 2 | . 3 . . . . 3 10 15 13 14 7 12 6 4 . 7 1 . . . . . . . . . . . . . . . . 1 Energy Cannon 3 | . . . . . . . . . . . . . . . . . . . . 7 12 10 10 10 9 10 10 9 9 8 8 5 5 3 Ballistic Gun 4 | . 24 18 18 11 21 12 . . . . 5 . 4 9 8 . 8 . . . . . . . . . . . . . . . . . Special Weapon 2 | . . . . . . . . . . . . . . . 4 4 1 4 3 3 1 4 4 4 4 5 4 4 3 4 4 3 3 . Peak Build Rating 200 | 6 9 19 25 28 27 38 44 43 43 52 72 72 81 83 77 76 82 93 87 95 120 145 150 154 152 145 149 160 160 170 171 184 189 200 Average Rating 103 | 4 7 17 21 25 26 34 34 38 36 45 57 67 72 72 72 73 76 87 84 91 106 139 147 148 149 141 142 156 156 159 164 176 182 192 On Entrance 87 | . 6 8 19 24 27 27 36 35 35 37 47 72 66 81 67 74 74 79 85 85 93 120 142 149 149 151 139 141 160 154 162 161 183 181 Naked Turns . | . . . . . . . . . . . . . . . . . . . . . . . . . . . . . . . . . . . Heaviest Build 231 | 14 34 62 106 106 104 106 116 114 115 118 126 126 125 125 121 121 137 150 166 166 188 199 193 204 188 163 189 188 205 205 189 215 206 231 Greatest Support 230 | 40 40 60 68 68 68 28 80 80 80 80 140 140 150 150 150 150 150 150 150 168 185 230 230 230 230 230 220 220 210 210 205 205 200 220 Greatest Overweight (x) 5 | . . 1 1 1 1 5 4 1 1 1 1 . . . . . . 1 1 1 1 . . . . . 1 1 1 1 1 1 1 3 Average Overweight (x) . | . . . . 1 1 3 2 1 1 1 . . . . . . . . . . . . . . . . . . . . . . . . Largest Inventory Capacity 25 | 8 15 20 25 25 25 25 25 25 25 25 25 25 25 25 25 25 25 25 25 25 25 25 25 25 25 25 25 25 25 25 25 25 25 25 Average Capacity 24 | 7 14 18 21 25 25 25 25 25 25 25 25 25 25 25 25 25 25 25 25 25 25 25 25 25 25 25 25 25 25 25 25 25 25 25 Most Carried 25 | 1 15 20 23 25 25 25 25 25 25 25 25 25 25 25 25 25 25 25 25 25 25 25 25 25 25 25 25 25 25 25 25 25 25 25 Average Carried 23 | . 9 17 20 24 23 23 24 22 24 24 24 24 23 22 24 24 24 23 24 23 24 23 24 23 24 24 24 24 24 24 24 24 24 20 Final Capacity 25 | 8 15 20 25 25 25 25 25 25 25 25 25 25 25 25 25 25 25 25 25 25 25 25 25 25 25 25 25 25 25 25 25 25 25 25 Final Carried 25 | 1 12 19 23 25 23 25 22 24 25 25 25 25 25 21 25 25 25 24 25 21 25 24 25 25 25 25 25 25 25 25 25 25 25 25 Class Distribution -------------------- 34% | Botlord-Tank 18% | Mutant 12% | Bothacker-Mutant 9% | Scavenger-Tank 9% | Scavenger-Mutant 7% | Botlord-Mutant 3% | Generator-Tank 3% | Generator-Mutant Dominant Class ---------------- Mutant | -10/Materials Mutant | -9/Materials Mutant | -9/Mines Mutant | -9/Exiles Mutant | -8/Mines Mutant | -8/Materials Mutant | -8/Garrison Scavenger-Mutant | -8/Materials Scavenger-Mutant | -8/Garrison Bothacker-Mutant | -7/Factory Bothacker-Mutant | -7/Waste Bothacker-Mutant | -7/Factory Bothacker-Mutant | -7/Garrison Bothacker-Mutant | -7/Factory Bothacker-Mutant | -7/Garrison Botlord-Mutant | -7/Factory Botlord-Mutant | -7/Garrison Botlord-Tank | -6/Factory Botlord-Tank | -6/Garrison Botlord-Tank | -5/Factory Botlord-Tank | -5/Garrison Botlord-Tank | -4/Factory Botlord-Tank | -4/Garrison Botlord-Tank | -4/Factory Botlord-Tank | -4/Garrison Botlord-Tank | -4/Factory Botlord-Tank | -4/Garrison Botlord-Tank | -3/Research Botlord-Tank | -3/Garrison Botlord-Tank | -3/Quarantine Botlord-Tank | -3/Garrison Scavenger-Tank | -2/Research Scavenger-Tank | -2/Testing Generator-Tank | -1/Access Resources | -11 -10 -9 -9 -9 -8 -8 -8 -8 -8 -7 -7 -7 -7 -7 -7 -7 -7 -6 -6 -5 -5 -4 -4 -4 -4 -4 -4 -3 -3 -3 -3 -2 -2 -1 ----------- Run | Yrd Mat Mat Min Exi Min Mat Gar Mat Gar Fac Was Fac Gar Fac Gar Fac Gar Fac Gar Fac Gar Fac Gar Fac Gar Fac Gar Res Gar Qua Gar Res Tes Acc Matter Collected 23620 | 239 479 1304 44 . 323 731 351 283 90 130 371 88 514 933 975 188 1583 1060 1294 614 629 399 518 372 1074 162 544 798 463 480 704 1408 1531 2944 Remotely 3485 | . . . . . . . . . . . . . . . . . . . . . . . . . . . . . . . . 430 683 2372 Salvage Created 51098 | . 695 2014 91 . 372 1523 219 1294 303 405 855 364 922 1549 1015 94 1315 580 691 909 607 1124 453 411 1548 403 1879 2113 656 1823 1992 4850 4136 13893 Parts 2186 | . 50 138 9 . 10 88 16 55 17 16 9 20 36 83 43 8 61 17 34 39 26 46 17 25 59 20 83 128 30 101 74 206 171 451 Haulers Intercepted 25 | . 2 6 . . . 5 . 4 . 1 . . . 2 . . . . . 1 . 1 . . . . . . . . . 1 1 1 Recyclers Shooed 12 | . 3 1 . . . 1 . . . . . . . . . . . 1 . . . . . . . . . 1 . 2 . 3 . . Parts Field Recycled . | . . . . . . . . . . . . . . . . . . . . . . . . . . . . . . . . . . . Retrieved Matter . | . . . . . . . . . . . . . . . . . . . . . . . . . . . . . . . . . . . Parts Self-Destructed . | . . . . . . . . . . . . . . . . . . . . . . . . . . . . . . . . . . . Prevented . | . . . . . . . . . . . . . . . . . . . . . . . . . . . . . . . . . . . Kills | -11 -10 -9 -9 -9 -8 -8 -8 -8 -8 -7 -7 -7 -7 -7 -7 -7 -7 -6 -6 -5 -5 -4 -4 -4 -4 -4 -4 -3 -3 -3 -3 -2 -2 -1 ------- Run | Yrd Mat Mat Min Exi Min Mat Gar Mat Gar Fac Was Fac Gar Fac Gar Fac Gar Fac Gar Fac Gar Fac Gar Fac Gar Fac Gar Res Gar Qua Gar Res Tes Acc Combat Hostiles Destroyed 758 | . 18 51 4 . 6 20 7 22 9 9 . 5 11 36 11 2 20 14 27 17 14 17 7 8 22 5 25 28 8 26 22 52 65 170 Melee 3 | . . . . . . . . . . . . . . . . . . . . 1 . . . . . . 1 . . . . . 1 . Guns 191 | . 17 44 2 . 4 20 4 20 9 4 . 4 11 29 9 2 11 . . . . 1 . . . . . . . . . . . . Cannons 196 | . . . . . . . . . . . . . . . . . 1 10 24 12 6 6 5 4 11 2 14 18 4 18 5 21 10 25 AOE 195 | . 1 7 2 . 2 . 3 2 . 3 . . . 7 2 . 8 4 3 4 7 8 1 3 9 . 1 . 1 2 1 9 29 76 Classes Destroyed 27 | . 6 5 . . 1 . . 2 1 . . . . 2 . . 1 . 1 . . . 1 . . . . . . 2 . 1 . 4 Worker 38 | . 1 2 . . . 1 . 2 . . . 1 . 2 . . . 2 . 1 . . . . . . . 1 . 2 . 9 6 8 Builder 41 | . . 5 . . . 2 . 1 . . . 1 . 3 . . . . . . . 2 . . . . . 1 1 1 . 4 8 12 Tunneler 7 | . . . . . . . . 1 . 1 . 2 . . . . . 2 . . . . . . . 1 . . . . . . . . Hauler 25 | . 2 6 . . . 5 . 4 . 1 . . . 2 . . . . . 1 . 1 . . . . . . . . . 1 1 1 Recycler 9 | . . 1 . . 2 . . . . . . . . . . . . 2 . . . . . . . . . . . . . 4 . . Carrier 9 | . . . . . . . . . . . . . . . . . . . . . . . . . . . . . . . . . . 9 Mechanic 13 | . 1 1 . . . 1 . . . . . . . . . . . . . . . 1 . . . . . . . . . 2 1 6 Operator 5 | . . 1 . . . . . 1 . . . . . . . . 1 . . 1 . . . . . . . 1 . . . . . . Drone 2 | . . . . . . . . . . . . . . . . . . . . . . . . . . . . . . . . . . 2 Watcher 24 | . 1 5 . . . 5 . 5 . 2 . 2 . . . . . . . . . . . . . . . . . 1 . 1 2 . Swarmer 108 | . 6 20 2 . . . 2 2 2 . . . 5 6 3 . . 4 4 4 8 6 . 3 4 . 5 . 1 3 . 7 5 6 Cutter 8 | . . . . . . . . . . . . . . . . . 3 . . . . . 1 . 4 . . . . . . . . . Saboteur 12 | . . . . . . . . . . . . . . . . . . . 1 . . . . . . . . . . . . 1 2 8 Grunt 269 | . 12 21 2 . 3 9 3 15 5 3 . 3 2 11 4 1 8 9 14 8 1 3 2 . 4 . 7 3 4 5 5 11 27 64 Brawler 37 | . . . . . . . . 1 . . . . . 2 2 . 3 . . . . 3 . . 3 . 1 1 . . 3 1 4 13 Duelist 43 | . . 1 . . . 2 . . . . . 1 1 4 . . 1 . 4 . 1 1 . 1 . . 1 . 1 . 1 2 4 17 Protector 16 | . . . . . . . . . . . . . . 1 . . . . . . . . . . . . . . . 1 . . 2 12 Sentry 41 | . . 9 . . . 7 2 3 1 2 . 1 1 1 . . . . . 1 2 . 1 1 2 . 3 2 . . 1 . . 1 Specialist 11 | . . . . . . . . . . . . . . 3 . . . . . . . . 1 . . . 1 . . . 3 . 3 . Hunter 77 | . . . . . 3 2 . 1 . 1 . . 2 1 . 1 . . 2 . 2 2 . . 4 4 4 8 1 4 7 10 6 12 Programmer 127 | . . . . . . . . . 1 3 . . . 7 2 . 5 1 2 5 . 2 2 3 3 1 5 14 2 8 3 17 11 30 Heavy 1 | . . . . . . . . . . . . . . . . . . . . . . . . . . . . . . . . 1 . . Q-Series 4 | . . . . . . . . . . . . . . . . . . . . . . . . . . . . . . 1 . 1 . 2 Behemoth 3 | . . . . . . . . . . . . . . . . . . . . . . . 1 . . . 1 . . . . 1 . . Lightning 3 | . . . . . . . . . . . . . . . . . . . . . . . . . . . . . . 3 . . . . Investigator 2 | . . . . . . . . . . . . . . . . . . . . . . . . . . . . . . . . . . 2 Striker 5 | . . . . . . . . . . . . . . . . . . . . . . . . . . . . . . . . . . 5 Alpha 7 1 | . . . . . . . . . . . . . . . . . . . . . . . . . . . . . . 1 . . . . Protovariant P 1 | . . . . . . . . . . . . . . . . . . . . . . . . . . . . . . . . . 1 . Thug 1 | . . . . . . . . . . . . . . . . . 1 . . . . . . . . . . . . . . . . . Butcher 1 | . . . . . . . . . . . . . . . . . . . . . . . . . . . . . . . 1 . . . Best Kill Streak 21 | . 7 8 2 . 3 5 3 6 2 4 . 4 3 10 4 1 9 5 4 5 5 12 2 5 8 2 7 4 2 4 4 6 14 21 Combat Bots Only 17 | . 3 7 2 . 3 4 3 4 2 3 . 4 3 8 4 1 9 4 4 4 5 9 2 5 8 2 7 4 2 4 4 6 10 17 Max Kills in Single Turn 8 | . 1 2 2 . 2 2 2 2 2 4 . 1 1 2 3 1 3 5 3 6 3 5 1 2 3 1 1 2 1 2 2 5 4 8 Gunslinging 1 | . . 1 . . . . . . 1 . . . . 1 1 . . . . . . . . . . . . . . . . . . . Exploded 8 | . 1 1 2 . 1 . 1 2 . 3 . . . 2 2 . 2 4 3 4 3 3 1 2 3 . 1 . 1 2 1 4 4 8 Melee 1 | . . . . . . . . . . . . . . . . . . . . 1 . . . . . . 1 . . . . . 1 . Uniques/NPCs Destroyed . | . . . . . . . . . . . . . . . . . . . . . . . . . . . . . . . . . . . Combat | -11 -10 -9 -9 -9 -8 -8 -8 -8 -8 -7 -7 -7 -7 -7 -7 -7 -7 -6 -6 -5 -5 -4 -4 -4 -4 -4 -4 -3 -3 -3 -3 -2 -2 -1 -------- Run | Yrd Mat Mat Min Exi Min Mat Gar Mat Gar Fac Was Fac Gar Fac Gar Fac Gar Fac Gar Fac Gar Fac Gar Fac Gar Fac Gar Res Gar Qua Gar Res Tes Acc Hostile Shots Fired 3913 | . 82 182 6 . 51 152 64 72 40 84 . 52 82 235 114 35 95 86 170 83 83 100 77 41 77 48 187 118 74 128 280 291 311 413 Missed 1265 | . 22 63 2 . 10 34 22 16 8 30 . 23 27 78 47 9 31 27 51 30 25 33 22 15 31 11 54 50 21 42 109 81 114 127 Hits 2648 | . 60 119 4 . 41 118 42 56 32 54 . 29 55 157 67 26 64 59 119 53 58 67 55 26 46 37 133 68 53 86 171 210 197 286 Melee 65 | . . 2 . . . 12 . . . . . . . 11 . . 11 . 4 . 4 . 1 . 5 . 10 . . . . . 5 . Projectile 2583 | . 60 117 4 . 41 106 42 56 32 54 . 29 55 146 67 26 53 59 115 53 54 67 54 26 41 37 123 68 53 86 171 210 192 286 AOE 11 | . 2 . . . . . . . . . . . . 1 . . 2 . . . . . 1 . . . . . . 4 . . . 1 Critical Strikes 138 | . . 1 . . 1 3 1 4 4 . . . 1 5 2 . 9 . 2 1 3 4 6 2 3 2 14 4 5 5 9 14 15 18 Actively Blocked 1 | . . . . . . . . . . . . . . . . . . . . . . . . . . . . . . . . . . 1 Part Disruptions 13 | . . . . . . . . . . . . . . . . . . . . . . . . . 1 . . 1 1 2 2 2 1 3 Damage Taken 41390 | . 871 1353 30 . 741 1887 813 797 397 410 . 241 710 3039 783 341 1379 1032 1621 1133 922 983 997 416 1025 682 2738 773 650 1305 1590 3833 2542 5356 Core 3076 | . 214 199 . . 7 286 74 58 21 33 . 18 60 201 65 43 210 105 106 111 65 105 50 23 23 86 84 58 12 89 63 149 92 366 Absorbed by Shields 10681 | . . . . . . 381 150 . 8 138 . . . 17 . . . . 31 . 133 182 207 8 83 . 400 662 601 1016 1221 1663 1842 1938 Reduced by Siege Mode 1198 | . . . . . . . . . . . . . . 20 . . . . . . . . . . . 19 248 19 . 160 48 314 75 295 Redirected to Shielding 101 | . . . . . . . . . . . . . . . . . . . . . . . . . . . . . . . . . . 101 Ignored by Resistances 1280 | . . . . . . . . . . . . . . . . . . . 129 109 301 236 254 81 170 . . . . . . . . . Regen/Repaired (Parts) 3865 | . . 218 . . . 164 . . . 71 . . . 45 . . . 249 . 107 . 326 274 57 . 452 407 98 67 . . 800 530 . Core Remaining (%) 59 | 100 14 . . . 48 . . . 20 . . . . . . . 10 . 75 . 82 . . . . . 67 . . . 82 . 83 77 Volleys Fired 2928 | . 75 163 8 . 26 104 17 60 17 26 50 20 51 101 72 19 110 64 100 71 66 49 82 31 96 20 103 162 90 189 192 245 183 266 Largest 3 | . 2 2 2 . 2 2 2 2 2 2 1 2 2 2 2 2 2 1 1 2 3 3 2 2 2 2 3 1 2 2 1 2 1 2 Hottest 360 | . 60 53 46 . 53 130 160 160 160 160 80 160 160 160 160 160 80 70 70 180 330 330 240 240 240 240 360 120 160 214 120 214 130 182 Shots Fired 3981 | . 150 306 13 . 52 206 32 120 33 50 50 33 96 182 120 23 192 64 100 102 110 75 122 43 127 31 195 160 97 186 174 248 170 319 Gun 1561 | . 150 288 12 . 47 206 27 119 32 48 50 27 94 169 101 10 165 4 . 1 . 4 . . . . 4 . . . . . . 3 Cannon 1680 | . . . . . . . . . . . . . . . . . 6 35 79 62 86 41 90 29 76 23 178 115 80 169 135 202 108 166 Launcher 314 | . . 18 1 . 5 . 5 1 1 1 . . . 6 1 . 11 1 1 1 4 8 3 2 4 . . . 2 . 4 29 55 150 Special 426 | . . . . . . . . . . 1 . 6 2 7 18 13 10 24 20 38 20 22 29 12 47 8 13 45 15 17 35 17 7 . Kinetic 1251 | . 139 288 12 . 47 169 . . . . 45 . 53 107 98 . 168 39 79 3 . 4 . . . . . . . . . . . . Thermal 1493 | . . . . . . 17 25 119 32 48 1 27 41 62 3 10 3 . . 60 86 41 90 29 56 5 129 59 28 120 46 156 52 148 Explosive 102 | . . 18 1 . 5 . 5 1 1 1 . . . 6 1 . 11 1 1 1 . . . . . . . . . . . 3 30 16 Electromagnetic 709 | . 11 . . . . 20 2 . . . 4 . . . . . . . . . 4 8 3 2 24 18 53 56 54 49 93 72 81 155 Robot Hit Streak 42 | . 9 15 13 . 16 16 12 23 6 8 19 10 41 42 27 5 25 10 18 7 12 9 11 6 18 6 23 24 10 19 16 28 19 29 Robot Miss Streak 9 | . 5 5 . . 2 4 3 9 8 5 1 5 4 8 2 4 5 3 4 2 4 4 3 2 3 3 4 4 5 4 5 6 5 5 Penetration Max 1 | . . . . . . . . . . . . . . 1 1 . 1 . 1 1 . 1 . . . . . . . . . . . . Secondary Targets 22 | . 1 4 . . . 4 . 1 1 . . 1 1 4 3 . 2 . . . . . . . . . . . . . . . . . Max Gunslinging Chain 1 | . 1 1 . . . 1 . 1 1 . . 1 1 1 1 . 1 . . . . . . . . . . . . . . . . . Capacitor 897 | . . . . . . . . . . . . . . . . . . . . . . . . . . . . 113 57 167 135 179 87 159 Shots Hit Robots 2572 | . 84 185 12 . 39 150 23 106 22 44 43 28 76 127 91 17 121 44 70 72 59 45 54 24 78 21 121 97 39 125 91 160 114 190 Core Hits 2054 | . 40 97 5 . 18 72 20 83 25 34 9 20 50 101 46 7 65 14 26 27 22 40 13 12 39 6 35 29 24 41 34 115 176 709 Critical Kills 22 | . . 1 . . . 1 . . . . . . . 2 1 . 3 . . . 1 . 1 1 . . . 1 . 1 1 3 1 4 Critical Parts Destroyed 9 | . . 2 . . . . . . . . . . 1 . 4 . 2 . . . . . . . . . . . . . . . . . Critical Strikes 55 | . . 3 . . . 2 . . . . . . 1 2 5 . 5 4 5 . 1 . 1 1 . . 1 3 . 1 9 3 3 5 Meltdown 14 | . . . . . . . . . . . . . . . . . . . . . 1 . 1 1 . . . 1 . 1 1 3 1 4 Destroy 18 | . . 3 . . . 2 . . . . . . 1 2 5 . 5 . . . . . . . . . . . . . . . . . Blast 9 | . . . . . . . . . . . . . . . . . . 4 5 . . . . . . . . . . . . . . . Corrupt 14 | . . . . . . . . . . . . . . . . . . . . . . . . . . . 1 2 . . 8 . 2 1 Melee Attacks 118 | . . 1 1 . . 6 20 23 15 4 . 3 14 . 9 2 9 1 5 2 3 . . . . . . . . . . . . . Impact 108 | . . 1 1 . . 6 20 13 15 4 . 3 14 . 9 2 9 1 5 2 3 . . . . . . . . . . . . . Slashing . | . . . . . . . . . . . . . . . . . . . . . . . . . . . . . . . . . . . Piercing . | . . . . . . . . . . . . . . . . . . . . . . . . . . . . . . . . . . . Sneak Attacks 3 | . . . . . . . . 3 . . . . . . . . . . . . . . . . . . . . . . . . . . Combat Hostiles . | . . . . . . . . . . . . . . . . . . . . . . . . . . . . . . . . . . . Follow-up Attacks . | . . . . . . . . . . . . . . . . . . . . . . . . . . . . . . . . . . . Damage Inflicted 127073 | . 1263 4236 282 . 969 2530 1084 2409 436 1591 850 620 1684 4747 2458 163 4626 2450 4098 2483 1940 2672 2050 772 2774 611 4716 3266 1544 5352 3266 10274 13233 35624 Guns 23084 | . 1127 2697 170 . 391 2448 477 2198 436 1067 850 562 1684 3459 2217 163 2926 . . 57 . 69 . . . . 86 . . . . . . . Cannons 50696 | . . . . . . . . . . . . . . . . . 279 2084 3905 1501 1611 1076 1884 683 1787 600 4526 3063 1241 4704 2751 6663 3533 8805 Explosions 51996 | . 127 1440 112 . 515 30 607 183 . 524 . . . 1165 236 . 1421 287 185 809 329 1527 141 89 957 . 80 . 286 507 515 3450 9655 26819 Melee 65 | . . . . . . . . . . . . . . . . . . 42 . 23 . . . . . . . . . . . . . . Ramming 1232 | . 9 99 . . 63 52 . 28 . . . 58 . 123 5 . . 37 8 93 . . 25 . 30 11 24 203 17 141 . 161 45 . Kinetic 21420 | . 1061 2697 170 . 391 1781 . . . . 756 . 1095 1965 2163 . 3183 2084 3905 100 . 69 . . . . . . . . . . . . Thermal 49511 | . 127 . . . . 363 442 2198 436 1478 22 562 589 1494 54 163 22 . . 2186 1622 1554 1884 683 1560 55 3381 1620 441 3568 729 5650 1969 14659 Explosive 17646 | . . 1440 112 . 515 . 607 183 . 113 . . . 1165 236 . 1421 287 185 81 . . . . . . . . . 507 . 596 6924 3274 Electromagnetic 37199 | . 66 . . . . 334 35 . . . 72 . . . . . . . . . 318 1049 141 89 1184 545 1311 1443 1086 1136 2537 3867 4295 17691 Impact 65 | . . . . . . . . . . . . . . . . . . 42 . 23 . . . . . . . . . . . . . . Slashing . | . . . . . . . . . . . . . . . . . . . . . . . . . . . . . . . . . . . Piercing . | . . . . . . . . . . . . . . . . . . . . . . . . . . . . . . . . . . . Highest Corruption 64 | . . . . . . . . . 2 2 2 2 2 14 12 12 18 2 3 3 3 1 1 2 3 4 5 14 18 40 49 29 64 48 Average Corruption 15 | . . . . . . . . . 1 1 2 2 1 8 11 12 15 1 2 2 3 1 1 1 2 3 4 8 15 24 46 11 34 36 Corruption Purged 9 | . . . . . . . . . . . . . 2 4 . . . . . . . . . . . . . . . . . . . 3 Corruption Blocked . | . . . . . . . . . . . . . . . . . . . . . . . . . . . . . . . . . . . Effects 1364 | . . . . . . . . . 16 7 6 9 . 33 56 23 86 6 29 6 40 1 14 5 23 14 49 66 72 100 109 141 133 320 Message Errors 293 | . . . . . . . . . 5 2 2 2 . 10 14 6 18 . 5 . 10 . 2 1 7 3 13 13 15 20 18 37 26 64 Matter Fused 312 | . . . . . . . . . 2 . 2 2 . 4 11 6 21 3 7 2 11 . 2 1 4 3 15 11 18 16 23 44 29 75 Heat Flow Errors 176 | . . . . . . . . . . 3 . 2 . 7 12 1 11 1 3 2 3 . 2 . 2 3 4 10 10 11 14 15 20 40 Energy Discharges 154 | . . . . . . . . . 2 1 1 1 . 1 2 4 6 2 6 . 7 1 4 2 3 1 6 8 8 15 10 9 10 44 Parts Rejected 24 | . . . . . . . . . . . . . . 2 1 . 2 . . . 1 . 1 . . . 1 2 1 3 . 2 5 3 Parts Fused 18 | . . . . . . . . . . . . . . . . . 3 . 1 . . . . . . . . 2 . 2 . 1 2 7 Data Loss (minor) 141 | . . . . . . . . . 3 1 . 1 . 1 5 3 9 . 4 . 4 . 1 . 4 1 4 10 7 8 7 14 12 42 Data Loss (major) 61 | . . . . . . . . . 2 . . . . 1 5 2 6 . 3 . . . 1 1 . 2 1 2 3 3 5 6 4 14 Misfires 51 | . . . . . . . . . 2 . . . . 2 2 . 6 . . 1 3 . 1 . 2 . 1 2 6 5 4 5 2 7 Alerts 35 | . . . . . . . . . . . 1 . . 3 1 1 2 . . . 1 . . . 1 1 3 2 1 2 2 4 2 8 Misdirections 19 | . . . . . . . . . . . . . . . 1 . . . . . . . . . . . . . . 6 4 1 6 1 Weapon Failures 80 | . . . . . . . . . . . . 1 . 2 2 . 2 . . 1 . . . . . . 1 4 3 9 22 3 15 15 Overload Shots . | . . . . . . . . . . . . . . . . . . . . . . . . . . . . . . . . . . . Overflow Damage 5195 | . 4 85 1 . 31 12 9 . . 49 . 25 . 43 1 . 8 319 389 115 48 . 11 15 15 33 62 133 19 225 56 480 583 2424 Projectiles 3924 | . . . . . . . . . . . . . . . . . 2 306 389 65 48 . 11 15 15 33 62 90 19 125 56 293 399 1996 Explosions 1129 | . 4 85 1 . 31 . 9 . . 49 . . . 26 1 . 6 13 . 50 . . . . . . . . . 100 . 142 184 428 Melee 142 | . . . . . . 12 . . . . . 25 . 17 . . . . . . . . . . . . . 43 . . . 45 . . Knockbacks 39 | . . . . . . . . . . . . . . 2 . . 2 10 19 1 . . 1 . . . . 1 . 2 . 1 . . Impact 8 | . . . . . . . . . . . . . . 2 . . . . . 1 . . 1 . . . . 1 . 2 . 1 . . Kinetic 28 | . . . . . . . . . . . . . . . . . 1 9 18 . . . . . . . . . . . . . . . Secondary 3 | . . . . . . . . . . . . . . . . . 1 1 1 . . . . . . . . . . . . . . . Self-Inflicted Damage 1718 | . 34 24 . . 89 66 3 . . 41 . . . 154 . . 226 . . 172 . . . . 212 . 79 . . 90 9 46 281 192 Shots 75 | . 1 1 . . 4 1 1 . . 1 . . . 4 . . 4 . . 3 . . . . 10 . 1 . . 1 1 5 21 16 Rammed 81 | . 5 13 . . 4 2 . 3 . . . 2 . 12 1 . . 3 1 4 . . 1 . 2 1 1 5 1 5 . 9 6 . Targets Rammed 91 | . 5 16 . . 4 2 . 3 . . . 3 . 12 1 . . 4 1 5 . . 1 . 2 1 1 7 1 5 . 11 6 . Kicked . | . . . . . . . . . . . . . . . . . . . . . . . . . . . . . . . . . . . Crushed 10 | . . 3 . . . . . . . . . 1 . . . . . 1 . 1 . . . . . . . 2 . . . 2 . . Highest Temperature 520 | . 12 45 6 . 105 256 282 412 234 172 . 349 288 328 253 192 262 204 286 324 400 140 72 141 240 . 355 376 24 168 324 473 438 520 Average Temperature 92 | . 9 10 2 . 34 57 96 118 51 73 . 110 92 82 99 71 88 48 69 104 106 60 29 58 109 . 117 139 24 75 94 191 146 139 Received Heat Transfer 6957 | . 267 324 . . 99 517 159 414 135 60 . 84 126 699 258 57 348 336 324 270 182 212 129 60 40 . 289 42 61 41 59 877 219 269 Effects 20 | . . . . . . . 1 2 . . . . . 3 . . . . . . . . . . 1 . . 3 . . 1 5 1 3 Energy Bleed 2 | . . . . . . . . 2 . . . . . . . . . . . . . . . . . . . . . . . . . . Interference 13 | . . . . . . . 1 . . . . . . 3 . . . . . . . . . . 1 . . 2 . . 1 2 1 2 Matter Decay 2 | . . . . . . . . . . . . . . . . . . . . . . . . . . . . 1 . . . 1 . . Short Circuit 2 | . . . . . . . . . . . . . . . . . . . . . . . . . . . . . . . . 2 . . Damage (core) 1 | . . . . . . . . . . . . . . . . . . . . . . . . . . . . . . . . . . 1 Siege Activations 35 | . . . . . . . . . . . . . . 1 . . . . . . . . . . . 1 3 1 . 3 3 8 8 7 Total Turns 3985 | . . . . . . . . . . . . . . 78 . . . . . . . . . . . 9 76 29 . 85 36 1393 142 2137 Longest Duration 1092 | . . . . . . . . . . . . . . 78 . . . . . . . . . . . 9 35 29 . 60 22 520 28 1092 Martial Activations . | . . . . . . . . . . . . . . . . . . . . . . . . . . . . . . . . . . . Shielding Activations . | . . . . . . . . . . . . . . . . . . . . . . . . . . . . . . . . . . . Robots Disrupted 9 | . . . . . . . . . . . . . . . . . . . . . . 1 . . . . . . . . . 2 1 5 Combat Hostiles 8 | . . . . . . . . . . . . . . . . . . . . . . 1 . . . . . . . . . 2 1 4 Robots Corrupted 169 | . . . . . . 1 . . . . . 1 . 1 . . . 1 . . . 1 . . 4 3 9 9 4 5 16 22 24 68 Combat Hostiles 156 | . . . . . . . . . . . . . . . . . . . . . . 1 . . 2 3 9 9 3 5 15 19 24 66 Parts Fried 354 | . . . . . . 4 1 3 . . . 1 . . . . . 3 . . 2 6 . . 7 6 13 5 7 9 19 46 42 180 Impact Corruptions 9 | . . . . . . 1 . . . . . 1 . 1 . . 1 1 1 . . . . . . . . 1 . . . 2 . . Robots Melted 19 | . . . . . . . . . . 2 . 1 . . . . . . . . 1 1 1 1 . . . 1 . 1 1 4 1 4 Combat Hostiles 17 | . . . . . . . . . . 2 . 1 . . . . . . . . 1 1 1 1 . . . 1 . 1 1 3 1 3 Parts Melted 116 | . 2 . . . . . 4 11 3 11 . 6 2 6 . . . . . 5 4 . 1 3 1 . 5 8 . 4 2 22 1 15 Heat Transferred 47736 | . 200 . . . . 800 975 5025 950 2525 50 1250 1270 2933 125 375 50 . . 1943 1641 1475 1515 555 1255 37 2769 1147 333 2937 531 4616 1155 9299 Parts Sabotaged 4 | . . . . . . . . . . . . . . . . . . . 3 . . . . . . . . . . . . . 1 . Parts Stolen . | . . . . . . . . . . . . . . . . . . . . . . . . . . . . . . . . . . . Parts Stripped . | . . . . . . . . . . . . . . . . . . . . . . . . . . . . . . . . . . . Power Chain Reactions 63 | . 1 . . . . 1 . . . . . . . . . . . . . . 1 4 . . 4 . 1 . . . 1 1 3 46 Alert | -11 -10 -9 -9 -9 -8 -8 -8 -8 -8 -7 -7 -7 -7 -7 -7 -7 -7 -6 -6 -5 -5 -4 -4 -4 -4 -4 -4 -3 -3 -3 -3 -2 -2 -1 ------- Run | Yrd Mat Mat Min Exi Min Mat Gar Mat Gar Fac Was Fac Gar Fac Gar Fac Gar Fac Gar Fac Gar Fac Gar Fac Gar Fac Gar Res Gar Qua Gar Res Tes Acc Maximum Alert Level 5 | . 1 3 1 . . . 3 2 3 2 . . 3 3 4 2 3 2 4 3 3 3 4 2 3 2 3 2 3 2 3 3 5 5 Low Security (%) 23 | 100 82 15 56 . 100 100 12 19 14 . 100 100 11 . . 48 34 58 6 41 17 . . . . 21 14 78 15 11 . . . . Level 1 20 | . 17 38 43 . . . 10 61 10 61 . . 4 19 . 1 13 39 11 . 47 71 14 54 30 46 8 . 21 84 22 . . . Level 2 23 | . . 34 . . . . 15 18 19 38 . . 31 28 12 50 45 1 24 45 22 25 39 45 41 31 54 21 34 4 40 36 43 . Level 3 20 | . . 11 . . . . 62 . 55 . . . 52 51 72 . 6 . 52 12 11 3 45 . 28 . 22 . 28 . 37 63 18 7 Level 4 3 | . . . . . . . . . . . . . . . 14 . . . 4 . . . . . . . . . . . . . 30 20 Level 5 1 | . . . . . . . . . . . . . . . . . . . . . . . . . . . . . . . . . 8 6 High Security 6 | . . . . . . . . . . . . . . . . . . . . . . . . . . . . . . . . . . 64 Max Security . | . . . . . . . . . . . . . . . . . . . . . . . . . . . . . . . . . . . Sterilizations 2 | . . 1 . . . . . . . . . . . . . . . . . . . . . . . . . . . . . . . 1 Peak Influence 3913 | . 259 839 324 . 84 180 1044 524 977 512 148 86 929 916 1165 611 772 401 1138 862 972 727 1156 606 988 541 871 578 982 552 876 945 1838 3913 Initial 1092 | . . 85 324 . . . 115 506 21 512 148 . . 487 632 611 63 401 89 597 1 510 299 606 214 518 40 489 105 552 280 492 529 1092 Average 698 | . 129 394 163 . 6 55 713 296 600 350 30 22 628 615 949 340 400 157 697 392 354 361 677 433 585 299 517 157 546 303 594 730 980 2849 Influence Increases 29222 | . 615 1666 209 . 194 723 994 770 966 432 . 192 989 1148 603 85 843 504 1109 710 1076 1218 937 333 1014 216 961 861 987 907 836 1447 1945 3732 Destroy 0b10 Robot/C 14265 | . 360 1020 120 . 120 400 500 440 380 180 . 100 480 720 220 30 315 225 570 270 330 390 210 150 420 120 405 450 315 390 345 810 945 2535 Destroy 0b10 Robot/NC 925 | . 25 105 . . 10 70 . 75 . 20 . 30 25 60 25 . 24 28 . 16 . 32 . . 4 4 4 16 . 24 . 92 80 156 Destroy Leader 2384 | . 76 242 20 . 40 140 20 118 30 76 . 24 30 128 20 8 24 50 40 42 24 90 8 40 24 32 48 114 16 74 48 164 118 456 Allied During Kill 1408 | . . . 14 . . . 34 . 35 . . 7 50 9 7 12 13 16 74 44 155 300 122 45 77 9 12 67 187 22 60 33 4 . Trap Triggered on 0b10 100 | . . . . . . . . 50 . 20 . . 20 10 . . . . . . . . . . . . . . . . . . . . Successful Hack 463 | . 30 35 . . . 41 12 11 14 39 . 30 7 21 . . 6 11 28 30 17 . 31 . . 9 . 74 11 6 . . . . Select Force Hacks 136 | . 60 30 . . . . . . . . . . . . . 23 . . . . . . . . . . . . . 23 . . . . Disable Machine 1050 | . . 15 . . 15 45 . 30 . 60 . . . 30 15 12 12 24 . 180 12 120 24 36 36 . 24 60 12 96 24 36 120 12 Anti-Garrison Action 3518 | . . . . . . . 300 . 350 . . . 300 . 263 . 340 113 302 . 302 . 264 . 227 . 302 . 228 . 227 . . . Destroy Structure 3737 | . 4 129 10 . 9 12 98 16 67 37 . 1 62 65 53 . 109 25 71 92 224 274 254 62 202 30 94 80 122 200 108 276 582 369 Partial Spotted 27 | . . . . . . . . 15 . . . . . . . . . . . . . . . . . 12 . . . . . . . . Lose Combat Pursuer 1209 | . 60 90 45 . . 15 30 15 90 . . . 15 105 . . . 12 24 36 12 12 24 . 24 . 72 . 96 72 24 36 96 204 Influence Decreases 25318 | . 413 1035 1042 . 194 545 133 1776 22 985 424 192 60 1173 342 1159 168 1142 99 1846 106 1762 209 1183 332 1146 148 1591 146 1515 334 1381 1067 1648 Entered New Map 8405 | . . 117 509 . . . 63 533 12 465 276 . . 442 272 554 28 365 39 541 1 462 129 550 92 470 18 382 36 430 94 384 413 728 Time Decay 9996 | . 393 748 473 . 184 436 . 703 . 510 148 192 . 601 . 270 . 483 . 561 . 470 . 278 . 326 . 649 . 580 . 737 624 630 Lost Part 685 | . 20 20 . . 10 85 30 20 10 10 . . 20 60 10 . 30 . 40 . . . . . . . 40 . . 20 20 20 20 200 Lost Ally 2610 | . . . 60 . . . 40 70 . . . . 40 70 60 60 110 109 20 306 105 130 80 80 240 50 90 110 110 110 220 240 10 90 Purge Threat 3622 | . . 150 . . . 24 . 450 . . . . . . . 275 . 185 . 438 . 700 . 275 . 300 . 450 . 375 . . . . Squads Dispatched 169 | . 5 8 1 . . 4 . 8 . 5 . 3 . 10 . 2 . 11 . 14 . 9 . 3 . 3 . 9 . 13 . 11 13 37 Investigation 21 | . 4 3 1 . . . . 1 . 1 . . . 1 . 1 . 2 . 2 . . . . . 2 . 1 . 1 . . 1 . Extermination 36 | . . . . . . . . . . 2 . 1 . 2 . . . 3 . 3 . 2 . 1 . 1 . 6 . 3 . 6 4 2 Reinforcement 42 | . 1 4 . . . 1 . 3 . 1 . 2 . 2 . 1 . 3 . 4 . 3 . 1 . . . 2 . 6 . 2 4 2 Assault 50 | . . 1 . . . . . 1 . 1 . . . 5 . . . 2 . . . 2 . . . . . . . . . 3 4 31 Garrison 20 | . . . . . . 3 . 3 . . . . . . . . . 1 . 5 . 2 . 1 . . . . . 3 . . . 2 Intercept . | . . . . . . . . . . . . . . . . . . . . . . . . . . . . . . . . . . . Searches Triggered . | . . . . . . . . . . . . . . . . . . . . . . . . . . . . . . . . . . . Construction Impeded 7 | . . 3 . . . . . . . . . . . . . . . 1 . . . . . . . . . . . . . . 1 2 Haulers Reinforced 6 | . . . . . . . . . . . . . . . . . . 2 . 2 . 1 . . . . . . . . . . 1 . Active Scanning Responses . | . . . . . . . . . . . . . . . . . . . . . . . . . . . . . . . . . . . Cargo Convoy Interrupts 2 | . . . . . . . . . . . . . . 1 . . . . . . . . . . . . . 1 . . . . . . Alert ID Control Effect 186 | . . . . . . . . . . . . . 1 . 14 5 9 14 5 16 19 21 30 12 7 . 4 1 9 8 9 2 . . Stealth | -11 -10 -9 -9 -9 -8 -8 -8 -8 -8 -7 -7 -7 -7 -7 -7 -7 -7 -6 -6 -5 -5 -4 -4 -4 -4 -4 -4 -3 -3 -3 -3 -2 -2 -1 --------- Run | Yrd Mat Mat Min Exi Min Mat Gar Mat Gar Fac Was Fac Gar Fac Gar Fac Gar Fac Gar Fac Gar Fac Gar Fac Gar Fac Gar Res Gar Qua Gar Res Tes Acc Distress Signals 40 | . 2 2 . . . 2 . 5 . 1 . 1 . . . 1 1 1 . 4 . 2 1 1 . 1 . 3 1 3 . 4 4 . Communications Jammed 399 | . . . . . . . . . . . . . . 124 . 2 . 13 . 2 . 15 . 3 . . . 67 63 89 . 18 3 . Distress Signals 396 | . . . . . . . . . . . . . . 124 . . . 13 . 2 . 15 . 2 . . . 67 63 89 . 18 3 . Times Spotted 1373 | . 31 70 9 . 6 33 23 48 17 14 . 10 24 59 30 12 37 47 47 53 44 43 54 26 41 11 39 45 48 57 38 82 84 191 Peak Tracking Total 12 | . 4 5 6 . 3 4 4 8 4 3 . 3 5 12 8 2 9 5 4 6 8 9 8 4 6 3 7 6 11 6 5 9 8 12 Tactical Retreats 64 | . 3 4 2 . . 1 2 1 3 . . . 1 6 . . . 1 2 1 1 1 1 . 2 . 2 . 3 4 2 3 5 13 Traps | -11 -10 -9 -9 -9 -8 -8 -8 -8 -8 -7 -7 -7 -7 -7 -7 -7 -7 -6 -6 -5 -5 -4 -4 -4 -4 -4 -4 -3 -3 -3 -3 -2 -2 -1 ------- Run | Yrd Mat Mat Min Exi Min Mat Gar Mat Gar Fac Was Fac Gar Fac Gar Fac Gar Fac Gar Fac Gar Fac Gar Fac Gar Fac Gar Res Gar Qua Gar Res Tes Acc Traps Triggered 70 | . 2 1 . . . . 18 . 8 1 . . . 2 1 . 2 3 1 . 6 1 3 . 2 . 3 . 3 2 6 1 2 2 Indirectly 4 | . . . . . . . . . . . . . . . . . . . . . 2 . . . . . . . . . 2 . . . Trap Hack Attempts 65 | . . . . . . . . 65 . . . . . . . . . . . . . . . . . . . . . . . . . . Triggered 1 | . . . . . . . . 1 . . . . . . . . . . . . . . . . . . . . . . . . . . Disarmed 5 | . . 5 . . . . . . . . . . . . . . . . . . . . . . . . . . . . . . . . Reprogrammed 11 | . . . . . . . . 5 . 6 . . . . . . . . . . . . . . . . . . . . . . . . Reused 10 | . . . . . . . . 5 . 2 . . 2 1 . . . . . . . . . . . . . . . . . . . . Traps Reconfigurated 45 | . . . . . . . . 11 3 . . . 19 6 . . . 6 . . . . . . . . . . . . . . . . Traps Extracted . | . . . . . . . . . . . . . . . . . . . . . . . . . . . . . . . . . . . Installed . | . . . . . . . . . . . . . . . . . . . . . . . . . . . . . . . . . . . Triggered 10 | . . . . . . . . 5 . 2 . . 2 1 . . . . . . . . . . . . . . . . . . . . Machines | -11 -10 -9 -9 -9 -8 -8 -8 -8 -8 -7 -7 -7 -7 -7 -7 -7 -7 -6 -6 -5 -5 -4 -4 -4 -4 -4 -4 -3 -3 -3 -3 -2 -2 -1 ---------- Run | Yrd Mat Mat Min Exi Min Mat Gar Mat Gar Fac Was Fac Gar Fac Gar Fac Gar Fac Gar Fac Gar Fac Gar Fac Gar Fac Gar Res Gar Qua Gar Res Tes Acc Machines Disabled 140 | . . 2 . . 1 3 3 2 5 4 . . 3 2 5 1 7 3 4 15 7 10 6 3 7 . 6 5 8 8 5 3 10 2 Max in Single Turn 13 | . . 1 . . 1 2 1 1 1 4 . . 1 1 1 1 1 1 1 13 1 . 1 1 1 . 1 1 1 1 1 1 1 1 Garrison Access 8 | . . . . . . . . . . . . . . 1 . . . 1 . 1 . 1 . . . . . . . . . . 1 3 Garrison Relay 48 | . . . . . . . 3 . 3 . . . 3 . 4 . 5 . 4 . 5 . 4 . 4 . 4 . 6 . 3 . . . Phase Generator 1 | . . . . . . . . . 1 . . . . . . . . . . . . . . . . . . . . . . . . . Energy Cycler 1 | . . . . . . . . . . . . . . . . . . . . . . . . . . . . . . . . . . 1 Machines Repaired . | . . . . . . . . . . . . . . . . . . . . . . . . . . . . . . . . . . . Machines Dismantled . | . . . . . . . . . . . . . . . . . . . . . . . . . . . . . . . . . . . Machines Sabotaged . | . . . . . . . . . . . . . . . . . . . . . . . . . . . . . . . . . . . Overloaded Fab Kills . | . . . . . . . . . . . . . . . . . . . . . . . . . . . . . . . . . . . Hacking | -11 -10 -9 -9 -9 -8 -8 -8 -8 -8 -7 -7 -7 -7 -7 -7 -7 -7 -6 -6 -5 -5 -4 -4 -4 -4 -4 -4 -3 -3 -3 -3 -2 -2 -1 --------- Run | Yrd Mat Mat Min Exi Min Mat Gar Mat Gar Fac Was Fac Gar Fac Gar Fac Gar Fac Gar Fac Gar Fac Gar Fac Gar Fac Gar Res Gar Qua Gar Res Tes Acc Machines Accessed 144 | . 9 14 1 2 . 10 3 8 2 6 . 2 3 7 . 4 3 8 2 9 2 3 2 2 . 7 3 12 1 7 3 3 4 2 Terminals 89 | . 6 10 . . . 8 3 5 2 3 . 1 3 3 . 1 3 3 2 6 2 1 2 . . 4 3 7 1 4 3 1 2 . Fabricators 11 | . . . . . . . . . . 1 . . . 2 . 2 . 2 . . . . . 1 . . . 1 . . . 1 1 . Repair Stations 15 | . 1 2 . . . 1 . 1 . 1 . . . 1 . . . 1 . 1 . . . . . 2 . 1 . 2 . 1 . . Recycling Units 6 | . 2 1 . . . . . . . 1 . . . . . . . . . . . . . . . . . 2 . . . . . . Scanalyzers 2 | . . 1 . . . . . 1 . . . . . . . . . . . . . . . . . . . . . . . . . . Garrison Access 18 | . . . . . . 1 . 1 . . . 1 . 1 . 1 . 2 . 2 . 2 . 1 . 1 . 1 . 1 . . 1 2 Total Hacks 335 | . 20 41 1 2 . 27 6 16 4 17 . 4 11 15 . 7 3 23 3 27 3 9 3 5 . 25 6 26 2 10 4 5 6 4 Successful 160 | . 10 25 1 2 . 15 1 9 1 6 . 4 1 8 . 3 2 14 3 11 2 4 3 3 . 7 1 9 1 6 . 2 2 4 Failed 174 | . 10 15 . . . 12 5 7 3 11 . . 10 7 . 4 1 9 . 16 1 5 . 2 . 18 5 17 1 4 4 3 4 . Catastrophic 45 | . 2 2 . . . 2 3 3 2 3 . . 1 2 . 2 1 2 . 4 . 1 . . . 4 3 3 . 2 1 1 1 . Database Lockouts 1 | . . 1 . . . . . . . . . . . . . . . . . . . . . . . . . . . . . . . . Manual 128 | . 15 16 . 1 . 18 . 4 . 7 . 1 . 3 . 2 . 10 1 15 . 4 1 1 . 13 . 7 . 7 . 2 . . Terminals 202 | . 15 28 . . . 23 6 10 4 12 . 2 11 7 . 1 3 8 3 15 3 2 3 . . 13 6 13 2 5 4 1 2 . Fabricators 24 | . . . . . . . . . . 1 . . . 4 . 3 . 4 . . . . . 3 . . . 4 . . . 2 3 . Repair Stations 40 | . 3 4 . . . 2 . 2 . 2 . . . 2 . . . 5 . 3 . . . . . 10 . 3 . 2 . 2 . . Recycling Units 10 | . 2 1 . . . . . . . 2 . . . . . . . . . . . . . . . . . 5 . . . . . . Scanalyzers 10 | . . 8 . . . . . 2 . . . . . . . . . . . . . . . . . . . . . . . . . . Garrison Access 46 | . . . . . . 2 . 2 . . . 2 . 2 . 3 . 6 . 9 . 7 . 2 . 2 . 1 . 3 . . 1 4 Terminal Hacks 47 | . 1 6 1 2 . 3 1 3 1 4 . 1 1 1 . . 2 1 3 2 2 1 2 . . 2 1 2 1 3 . . . . Record 2 | . . . . 1 . . . . . . . . . . . . . . . . . . . . . . . . . 1 . . . . Part Schematic 1 | . . . . . . . . . . . . . . . . . . . . 1 . . . . . . . . . . . . . . Robot Schematic 1 | . . 1 . . . . . . . . . . . . . . . . . . . . . . . . . . . . . . . . Prototype ID Bank 5 | . 1 2 . . . 2 . . . . . . . . . . . . . . . . . . . . . . . . . . . . Open Door 7 | . . . 1 . . . . . . . . . 1 . . . 1 . 1 . 1 . . . . . . . . 2 . . . . Branch Access Points 1 | . . . . . . . . . . 1 . . . . . . . . . . . . . . . . . . . . . . . . Emergency Access Points 6 | . . . . . . . 1 . . . . . . . . . . . 1 . 1 . 1 . . . 1 . 1 . . . . . Terminal Index 1 | . . . . . . . . . . . . . . . . . . . . . . . . . . . . 1 . . . . . . Fabricator Index 1 | . . . . . . . . . . . . 1 . . . . . . . . . . . . . . . . . . . . . . Garrison Index 1 | . . . . . . . . . . . . . . 1 . . . . . . . . . . . . . . . . . . . . Alert Level 1 | . . 1 . . . . . . . . . . . . . . . . . . . . . . . . . . . . . . . . Unreport Threat 9 | . . 1 . . . 1 . 2 . . . . . . . . . 1 . 1 . 1 . . . 2 . . . . . . . . Disarm Traps 1 | . . 1 . . . . . . . . . . . . . . . . . . . . . . . . . . . . . . . . Reprogram Traps 2 | . . . . . . . . . . 2 . . . . . . . . . . . . . . . . . . . . . . . . Hauler Manifests 1 | . . . . . . . . 1 . . . . . . . . . . . . . . . . . . . . . . . . . . Zone Layout 2 | . . . . . . . . . . 1 . . . . . . . . . . . . . . . . . 1 . . . . . . Garrison Registry 3 | . . . . . . . . . 1 . . . . . . . 1 . 1 . . . . . . . . . . . . . . . Patrol Navigation 1 | . . . . . . . . . . . . . . . . . . . . . . . 1 . . . . . . . . . . . Proto ID Catalog 1 | . . . . 1 . . . . . . . . . . . . . . . . . . . . . . . . . . . . . . Fabricator Hacks 10 | . . . . . . . . . . . . . . 4 . . . 1 . . . . . 2 . . . 1 . . . 1 1 . Load Schematic 7 | . . . . . . . . . . . . . . 2 . . . 1 . . . . . 1 . . . 1 . . . 1 1 . Build 3 | . . . . . . . . . . . . . . 2 . . . . . . . . . 1 . . . . . . . . . . Repair Station Hacks 19 | . 1 4 . . . 2 . 1 . 2 . . . 1 . . . 4 . 2 . . . . . 1 . 1 . . . . . . Scan Component 12 | . 1 2 . . . 1 . 1 . 1 . . . 1 . . . 2 . 1 . . . . . 1 . 1 . . . . . . Repair 7 | . . 2 . . . 1 . . . 1 . . . . . . . 2 . 1 . . . . . . . . . . . . . . Recycling Unit Hacks 1 | . . . . . . . . . . . . . . . . . . . . . . . . . . . . 1 . . . . . . Retrieve Components 1 | . . . . . . . . . . . . . . . . . . . . . . . . . . . . 1 . . . . . . Scanalyzer 10 | . . 8 . . . . . 2 . . . . . . . . . . . . . . . . . . . . . . . . . . Insert Component 5 | . . 4 . . . . . 1 . . . . . . . . . . . . . . . . . . . . . . . . . . Analyze 5 | . . 4 . . . . . 1 . . . . . . . . . . . . . . . . . . . . . . . . . . Garrison Access Hacks 31 | . . . . . . 1 . 2 . . . 2 . 2 . 2 . 4 . 4 . 3 . 1 . 2 . 1 . 2 . . 1 4 Unlock Access 14 | . . . . . . 1 . 1 . . . 1 . 1 . 1 . 2 . 1 . 2 . 1 . 1 . 1 . 1 . . . . Seal Access 4 | . . . . . . . . . . . . . . . . . . . . 1 . . . . . . . . . . . . 1 2 Coupler Status 13 | . . . . . . . . 1 . . . 1 . 1 . 1 . 2 . 2 . 1 . . . 1 . . . 1 . . . 2 Unauthorized Hacks 42 | . 8 7 . . . 9 . 1 . . . 1 . . . 1 . 4 . 3 . . 1 . . 2 . 3 . 1 . 1 . . Terminals 30 | . 6 6 . . . 9 . 1 . . . 1 . . . . . 2 . 2 . . 1 . . 1 . 1 . . . . . . Track 2 | . . . . . . 1 . . . . . . . . . . . . . . . . 1 . . . . . . . . . . . Assimilate 2 | . . . . . . 1 . . . . . . . . . . . . . 1 . . . . . . . . . . . . . . Botnet 4 | . 1 1 . . . 1 . . . . . 1 . . . . . . . . . . . . . . . . . . . . . . Operators 7 | . . . . . . 1 . 1 . . . . . . . . . 2 . 1 . . . . . 1 . 1 . . . . . . Skim 15 | . 5 5 . . . 5 . . . . . . . . . . . . . . . . . . . . . . . . . . . . Fabricators 1 | . . . . . . . . . . . . . . . . . . 1 . . . . . . . . . . . . . . . . Recompile 1 | . . . . . . . . . . . . . . . . . . 1 . . . . . . . . . . . . . . . . Repair Stations 3 | . . . . . . . . . . . . . . . . . . . . . . . . . . 1 . 1 . . . 1 . . Mechanics 3 | . . . . . . . . . . . . . . . . . . . . . . . . . . 1 . 1 . . . 1 . . Recycling Units 4 | . 2 1 . . . . . . . . . . . . . . . . . . . . . . . . . 1 . . . . . . Recyclers 1 | . . . . . . . . . . . . . . . . . . . . . . . . . . . . 1 . . . . . . Tunnel 3 | . 2 1 . . . . . . . . . . . . . . . . . . . . . . . . . . . . . . . . Scanalyzers . | . . . . . . . . . . . . . . . . . . . . . . . . . . . . . . . . . . . Garrison Access 4 | . . . . . . . . . . . . . . . . 1 . 1 . 1 . . . . . . . . . 1 . . . . Restock 1 | . . . . . . . . . . . . . . . . . . . . 1 . . . . . . . . . . . . . . Reprogram 1 | . . . . . . . . . . . . . . . . . . 1 . . . . . . . . . . . . . . . . Eject 2 | . . . . . . . . . . . . . . . . 1 . . . . . . . . . . . . . 1 . . . . Data Cores Recovered . | . . . . . . . . . . . . . . . . . . . . . . . . . . . . . . . . . . . Used . | . . . . . . . . . . . . . . . . . . . . . . . . . . . . . . . . . . . Hacking Detections 119 | . 6 11 . . . 8 3 6 1 6 . 2 3 6 . 4 1 7 2 9 2 2 . 2 . 7 2 12 1 7 3 3 2 1 Full Trace Events 15 | . . 2 . . . . 1 1 1 1 . . 1 1 . . . . . 2 . . . . . 2 . 1 . . 1 . 1 . Feedback Events 3 | . . . . . . . . . 1 . . . . . . . . . . . . . . . . . . . . . 1 . 1 . Corruption 3 | . . . . . . . . . 1 . . . . . . . . . . . . . . . . . . . . . 1 . 1 . Feedback Blocked . | . . . . . . . . . . . . . . . . . . . . . . . . . . . . . . . . . . . Robot Schematics Acquired 1 | . . 1 . . . . . . . . . . . . . . . . . . . . . . . . . . . . . . . . Robots Built 3 | . . . . . . . . . . . . . . 2 . . . . . . . . . 1 . . . . . . . . . . Authchips 2 | . . . . . . . . . . . . . . 1 . . . . . . . . . 1 . . . . . . . . . . Time 135 | . . . . . . . . . . . . . . 108 . . . . . . . . . 27 . . . . . . . . . . Total Robot Build Rating 3 | . . . . . . . . . . . . . . 2 . . . . . . . . . 1 . . . . . . . . . . Part Schematics Acquired 9 | . . 4 . . . . . 1 . . . . . . . . . . . 1 . . . . . . . . . 3 . . . . Parts Built . | . . . . . . . . . . . . . . . . . . . . . . . . . . . . . . . . . . . Authchips . | . . . . . . . . . . . . . . . . . . . . . . . . . . . . . . . . . . . Time . | . . . . . . . . . . . . . . . . . . . . . . . . . . . . . . . . . . . Total Part Build Rating . | . . . . . . . . . . . . . . . . . . . . . . . . . . . . . . . . . . . Parts Repaired 7 | . . 2 . . . 1 . . . 1 . . . . . . . 2 . 1 . . . . . . . . . . . . . . Time 309 | . . 102 . . . 44 . . . 22 . . . . . . . 106 . 35 . . . . . . . . . . . . . . Parts Recycled . | . . . . . . . . . . . . . . . . . . . . . . . . . . . . . . . . . . . Recycled Matter . | . . . . . . . . . . . . . . . . . . . . . . . . . . . . . . . . . . . Retrieved Matter . | . . . . . . . . . . . . . . . . . . . . . . . . . . . . . . . . . . . Retrieved Components 10 | . . . . . . . . . . . . . . . . . . . . . . . . . . . . 10 . . . . . . Parts Scanalyzed 5 | . . 4 . . . . . 1 . . . . . . . . . . . . . . . . . . . . . . . . . . Part Schematics Acquired 5 | . . 4 . . . . . 1 . . . . . . . . . . . . . . . . . . . . . . . . . . Parts Damaged 1 | . . 1 . . . . . . . . . . . . . . . . . . . . . . . . . . . . . . . . Bothacking | -11 -10 -9 -9 -9 -8 -8 -8 -8 -8 -7 -7 -7 -7 -7 -7 -7 -7 -6 -6 -5 -5 -4 -4 -4 -4 -4 -4 -3 -3 -3 -3 -2 -2 -1 ------------ Run | Yrd Mat Mat Min Exi Min Mat Gar Mat Gar Fac Was Fac Gar Fac Gar Fac Gar Fac Gar Fac Gar Fac Gar Fac Gar Fac Gar Res Gar Qua Gar Res Tes Acc Used RIF Installer 13 | . . . . . . . 1 . 1 . . . 1 . 1 . 1 . 1 . 1 . 1 . 2 . 1 . 1 . 1 . . . Hotswap 1 | . . . . . . . . . . . . . . . . . . . . . . . . . 1 . . . . . . . . . Code Merge 2 | . . . . . . . . . . . . . . . . . . . . . . . 1 . . . . . . . 1 . . . Command Fork 3 | . . . . . . . . . . . . . . . . . . . . . 1 . . . . . 1 . 1 . . . . . Threat Obfuscator 1 | . . . . . . . . . . . . . . . 1 . . . . . . . . . . . . . . . . . . . Signal Jammer 1 | . . . . . . . . . . . . . 1 . . . . . . . . . . . . . . . . . . . . . Zone Cloak 1 | . . . . . . . . . . . . . . . . . . . 1 . . . . . . . . . . . . . . . Patrol Navigation 1 | . . . . . . . . . . . . . . . . . 1 . . . . . . . . . . . . . . . . . Alert ID Control 1 | . . . . . . . . . 1 . . . . . . . . . . . . . . . . . . . . . . . . . Program Shield 1 | . . . . . . . . . . . . . . . . . . . . . . . . . 1 . . . . . . . . . Robots Hacked 204 | . . . . . . . . 5 . 1 . 2 2 4 11 4 8 17 6 24 9 11 13 7 7 6 9 17 3 12 10 12 4 . Non-combat 56 | . . . . . . . . 2 . 1 . 1 . 2 . 2 . 7 . 9 . 4 . 1 . 5 . 13 . 3 . 4 2 . Combat 148 | . . . . . . . . 3 . . . 1 2 2 11 2 8 10 6 15 9 7 13 6 7 1 9 4 3 9 10 8 2 . Robot Hacks Applied 243 | . . . . . . . . 7 . 1 . 3 2 4 11 9 8 19 6 28 9 17 13 9 8 6 11 28 3 13 11 13 4 . parse_system 11 | . . . . . . . . . . . . . . . . . . . . 1 . 1 . . 2 . 1 1 . 2 2 1 . . no_distress 1 | . . . . . . . . . . . . . . . . . . . . 1 . . . . . . . . . . . . . . find_chute 4 | . . . . . . . . . . 1 . . . . . . . 1 . 1 . 1 . . . . . . . . . . . . ignore_repairs 1 | . . . . . . . . . . . . . . . . . . . . . . . . . . . . 1 . . . . . . map_earth 1 | . . . . . . . . . . . . . . . . . . 1 . . . . . . . . . . . . . . . . find_fabricator 2 | . . . . . . . . . . . . . . . . . . . . . . . . . . . . 2 . . . . . . drop_inventory 16 | . . . . . . . . . . . . . . . . 1 . 3 . 3 . . . . . 3 . 5 . . . 1 . . purge_threat 22 | . . . . . . . . 1 . . . . . . . 2 . 1 . 3 . 6 . 2 . . . 4 . 3 . . . . block_reporting 6 | . . . . . . . . . . . . . . . . . . . . . . . . 1 . . . 4 . 1 . . . . clear_repairs 1 | . . . . . . . . . . . . . . . . 1 . . . . . . . . . . . . . . . . . . map_route 1 | . . . . . . . . . . . . . . . . . . . . . . . . . . . . 1 . . . . . . redirect_shields 1 | . . . . . . . . . . . . . . 1 . . . . . . . . . . . . . . . . . . . . disable_scanner 3 | . . . . . . . . . . . . . . . . . . . . . . . . . . . . . . 1 . . 2 . find_garrison 5 | . . . . . . . . . . . . 1 . . . 1 . 1 . . . 1 . 1 . . . . . . . . . . link_fov 1 | . . . . . . . . 1 . . . . . . . . . . . . . . . . . . . . . . . . . . overload_power 1 | . . . . . . . . . . . . . . . . . . . . . . 1 . . . . . . . . . . . . amplify_resonance 34 | . . . . . . . . . . . . . 1 . 3 . 3 4 1 2 1 2 3 1 2 . 1 2 1 2 3 2 . . overwrite_iff 47 | . . . . . . . . 4 . . . . . 1 . . 3 1 . 4 4 2 6 2 2 . 7 1 2 3 2 3 . . streamctrl_high 1 | . . . . . . . . . . . . . . . . . . . . . . . . . . . 1 . . . . . . . formatsys_low 25 | . . . . . . . . 1 . . . 1 . . . 2 . 2 . 5 . 2 . . . 2 . 6 . . . 2 2 . formatsys_high 59 | . . . . . . . . . . . . 1 1 2 8 2 2 5 5 8 4 1 4 2 2 1 1 1 . 1 4 4 . . Relay Couplers Released 221 | . . . . . . . 11 . 11 . . . 11 1 15 7 20 3 15 3 22 2 15 4 19 . 19 . 21 3 12 . . 7 Ejected 6 | . . . . . . . . . . . . . . . . 3 . . . . . . . . . . . . . 3 . . . . Machine Destruction 191 | . . . . . . . 11 . 11 . . . 11 1 15 . 20 3 15 . 19 2 15 . 16 . 16 . 21 . 12 . . 3 Programmers 24 | . . . . . . . . . . . . . . . . 4 . . . 3 3 . . 4 3 . 3 . . . . . . 4 Attached 89 | . . . . . . . . 2 . . . 2 1 3 7 4 5 6 6 7 5 4 6 4 5 1 2 3 3 2 6 3 1 1 Fabnet Peak Effective % . | . . . . . . . . . . . . . . . . . . . . . . . . . . . . . . . . . . . Robots Rewired 43 | . . . . . . . . . . . . . 2 . . . . . 4 . 9 . 5 . 10 . 1 . 6 . 6 . . . Allies Hacked 15 | . . . . . . . . . . . . . . 2 . . . . . 1 . 2 1 . . . . 2 1 1 2 3 . . Hacks Repelled . | . . . . . . . . . . . . . . . . . . . . . . . . . . . . . . . . . . . Allies | -11 -10 -9 -9 -9 -8 -8 -8 -8 -8 -7 -7 -7 -7 -7 -7 -7 -7 -6 -6 -5 -5 -4 -4 -4 -4 -4 -4 -3 -3 -3 -3 -2 -2 -1 -------- Run | Yrd Mat Mat Min Exi Min Mat Gar Mat Gar Fac Was Fac Gar Fac Gar Fac Gar Fac Gar Fac Gar Fac Gar Fac Gar Fac Gar Res Gar Qua Gar Res Tes Acc Total Allies 210 | . . . 3 . . . 1 4 . . . 2 3 5 8 4 6 9 9 17 17 5 18 5 14 3 12 12 11 7 16 16 3 . Largest Group 9 | . . . 3 . . . 1 1 . . . 2 3 4 6 6 7 5 8 5 7 8 8 8 5 2 3 5 9 6 9 5 2 . Highest-Rated Group 532 | . . . 40 . . . 31 29 . . . 26 66 110 176 170 164 129 350 199 477 498 532 405 210 134 206 183 493 293 444 267 64 . Highest-Rated Ally 148 | . . . 16 . . . 31 29 . . . 16 32 110 32 32 32 32 85 51 148 148 148 116 98 85 119 119 95 110 112 148 35 . Total Orders 74 | . . . . . . . . 2 . . . . 2 1 . . 2 . 3 2 4 5 20 1 4 1 4 3 1 1 . 2 8 8 STAY 20 | . . . . . . . . 1 . . . . 1 . . . 1 . 1 . 1 1 6 . 2 . 2 1 . . . . 3 . ROAM 6 | . . . . . . . . . . . . . . . . . . . 1 . 1 . 4 . . . . . . . . . . . FOLLOW 18 | . . . . . . . . 1 . . . . 1 . . . 1 . 1 . 2 1 8 . 2 . . 1 . . . . . . AID 21 | . . . . . . . . . . . . . . 1 . . . . . 2 . 3 2 1 . 1 2 1 1 1 . 1 5 . EXPLORE 8 | . . . . . . . . . . . . . . . . . . . . . . . . . . . . . . . . 1 . 7 RETURN 1 | . . . . . . . . . . . . . . . . . . . . . . . . . . . . . . . . . . 1 Ally Attacks 1396 | . . . 21 . . . 40 15 20 . . 20 35 18 44 39 37 45 48 95 112 137 204 57 96 18 23 22 82 56 61 51 . . Total Damage 44821 | . . . 161 . . . 1463 220 1091 . . 210 1584 618 913 1036 1037 1340 1776 2352 3541 4349 6626 1942 2854 770 757 1208 3746 1624 2234 1369 . . Kills 325 | . . . 2 . . . 18 1 10 . . . 14 5 14 5 11 16 17 18 28 35 40 14 13 3 7 5 22 10 10 7 . . Allies Corrupted 9 | . . . . . . . . . . . . . . . . . . . . 1 . . . . 1 . . . 2 . 4 1 . . Allies Melted 1 | . . . . . . . . . . . . . . . . . . . . . . . . . . . . . . . 1 . . . Turrets Deployed 3 | . . . . . . . 1 . 1 . . . 1 . . . . . . . . . . . . . . . . . . . . . Intel | -11 -10 -9 -9 -9 -8 -8 -8 -8 -8 -7 -7 -7 -7 -7 -7 -7 -7 -6 -6 -5 -5 -4 -4 -4 -4 -4 -4 -3 -3 -3 -3 -2 -2 -1 ------- Run | Yrd Mat Mat Min Exi Min Mat Gar Mat Gar Fac Was Fac Gar Fac Gar Fac Gar Fac Gar Fac Gar Fac Gar Fac Gar Fac Gar Res Gar Qua Gar Res Tes Acc Active Infowar (turns) 2763 | . 741 1794 . . . . . . . . . . 227 . . . . . . . . . . . . . . . . . . 1 . . Sensors 1 | . . . . . . . . . . . . . . . . . . . . . . . . . . . . . . . . 1 . . T.N.C. 2535 | . 741 1794 . . . . . . . . . . . . . . . . . . . . . . . . . . . . . . . . Jamming 227 | . . . . . . . . . . . . . 227 . . . . . . . . . . . . . . . . . . . . . Robot Analysis Total . | . . . . . . . . . . . . . . . . . . . . . . . . . . . . . . . . . . . Derelict Logs Recovered 3 | . . . 3 . . . . . . . . . . . . . . . . . . . . . . . . . . . . . . . Drone Launches 15 | . . . . . . . . . . . . . . . . . . . . . . . . . . . . . . . . 1 . 14 Drone Recoveries 3 | . . . . . . . . . . . . . . . . . . . . . . . . . . . . . . . . . . 3 Exploration | -11 -10 -9 -9 -9 -8 -8 -8 -8 -8 -7 -7 -7 -7 -7 -7 -7 -7 -6 -6 -5 -5 -4 -4 -4 -4 -4 -4 -3 -3 -3 -3 -2 -2 -1 ------------- Run | Yrd Mat Mat Min Exi Min Mat Gar Mat Gar Fac Was Fac Gar Fac Gar Fac Gar Fac Gar Fac Gar Fac Gar Fac Gar Fac Gar Res Gar Qua Gar Res Tes Acc Turns Passed 61539 | 81 1042 4011 1253 805 1491 2078 1719 3041 1396 1390 775 591 1463 1921 1402 583 1934 1608 1903 1707 1841 1184 1808 606 1610 737 1825 2492 1688 1786 1630 3732 2128 6278 Spaces Moved 25613 | 48 474 1630 574 330 518 755 860 1018 517 506 278 316 719 925 694 321 898 759 879 654 805 630 967 289 853 388 921 1458 807 904 795 809 829 1485 Core 4 | 4 . . . . . . . . . . . . . . . . . . . . . . . . . . . . . . . . . . Treads 24284 | 44 474 1630 574 330 518 77 213 1018 517 506 278 316 719 925 694 321 898 759 879 654 805 630 967 289 853 388 921 1458 807 904 795 809 829 1485 Legs . | . . . . . . . . . . . . . . . . . . . . . . . . . . . . . . . . . . . Wheels 1325 | . . . . . . 678 647 . . . . . . . . . . . . . . . . . . . . . . . . . . . Hover . | . . . . . . . . . . . . . . . . . . . . . . . . . . . . . . . . . . . Flight . | . . . . . . . . . . . . . . . . . . . . . . . . . . . . . . . . . . . Fastest Speed 50 | 50 160 160 160 240 240 145 145 240 240 240 160 160 160 160 160 160 160 160 160 173 155 150 150 150 150 150 150 145 145 145 165 165 166 163 Average Speed 181 | 150 160 171 209 240 240 182 163 240 240 242 235 160 160 160 160 160 160 160 176 197 189 150 150 150 150 155 152 147 183 157 165 223 195 238 Slowest Speed 560 | 160 160 240 240 240 240 560 320 240 240 250 250 160 160 160 160 160 160 240 270 270 259 150 150 150 150 156 230 225 233 233 237 250 250 410 Overloaded Moves . | . . . . . . . . . . . . . . . . . . . . . . . . . . . . . . . . . . . Propulsion Burnouts . | . . . . . . . . . . . . . . . . . . . . . . . . . . . . . . . . . . . Robots Hopped . | . . . . . . . . . . . . . . . . . . . . . . . . . . . . . . . . . . . Potential Cave-ins 2 | . . . . . . . . . . . . . . . . . . . . . . . . . . . . . . . . . . 2 Cave-ins Triggered 2 | . . . . . . 1 . . . . . . . . . . . . . . . . . . . . . . . . . . . 1 Exploration Rate (%) 59 | 4 91 96 99 61 93 68 87 68 72 16 92 11 93 31 74 12 88 21 74 20 91 26 80 11 81 12 89 35 90 69 81 28 78 36 Regions Visited 34 Branch Regions 5 Pre-discovered Areas 7 | . 2 4 . 1 . . . . . . . . . . . . . . . . . . . . . . . . . . . . . . Known Exits Taken 13 | . . . . . 1 1 . 1 . . . 1 . 1 . 1 . 1 . 1 . 1 . 1 . 1 . 1 . 1 . . . . Unknown Exits Taken 7 | 1 1 1 1 1 . . . . . . . . . . . . . . . . . . . . . . . . . . . 1 1 . Scrap Searched 2 | . . . 1 . 1 . . . . . . . . . . . . . . . . . . . . . . . . . . . . . Spaces Dug 85 | . . . 1 . . 5 1 9 3 3 . 1 1 . . . . 1 3 1 4 . 6 6 2 1 2 12 1 2 7 3 4 6 Terrain Destroyed 1524 | . 3 154 13 . 16 11 33 18 75 38 1 1 20 74 17 . 85 21 27 46 18 18 24 10 27 3 40 35 14 124 30 76 264 188 Melee 26 | . . . 1 . . 5 1 9 3 3 . 1 1 . . . . . . 1 1 . . . . . . . . . . . . . Projectile 406 | . . . . . . . . . . . 1 . 19 27 6 . 30 9 22 19 15 11 24 10 13 3 26 26 14 27 26 31 26 21 AOE 1089 | . 3 154 12 . 16 6 32 9 72 35 . . . 47 11 . 52 12 5 26 2 7 . . 14 . 14 9 . 97 4 45 238 167 Terrain Rammed . | . . . . . . . . . . . . . . . . . . . . . . . . . . . . . . . . . . . Walls Destroyed . | . . . . . . . . . . . . . . . . . . . . . . . . . . . . . . . . . . . Machines Disabled . | . . . . . . . . . . . . . . . . . . . . . . . . . . . . . . . . . . . Actions | -11 -10 -9 -9 -9 -8 -8 -8 -8 -8 -7 -7 -7 -7 -7 -7 -7 -7 -6 -6 -5 -5 -4 -4 -4 -4 -4 -4 -3 -3 -3 -3 -2 -2 -1 --------- Run | Yrd Mat Mat Min Exi Min Mat Gar Mat Gar Fac Was Fac Gar Fac Gar Fac Gar Fac Gar Fac Gar Fac Gar Fac Gar Fac Gar Res Gar Qua Gar Res Tes Acc Total 37638 | 54 606 2528 610 345 708 1229 1104 1434 610 607 353 361 901 1155 861 368 1189 1071 1097 980 1026 810 1230 428 1106 495 1169 1804 1000 1262 1105 2689 1289 4054 Wait 7105 | . 28 640 18 . 157 316 80 230 23 38 3 2 26 60 23 1 91 194 52 204 43 100 134 87 96 73 89 121 53 130 89 1517 206 2181 Move 25588 | 47 473 1629 573 329 517 755 859 1018 516 506 277 316 718 925 693 320 897 759 878 654 804 629 966 288 852 388 920 1458 806 903 794 808 829 1484 Hop . | . . . . . . . . . . . . . . . . . . . . . . . . . . . . . . . . . . . Pick Up 320 | 1 12 22 3 5 . 7 8 5 7 7 4 5 13 13 18 5 12 8 19 5 16 4 13 5 15 2 9 14 12 4 8 17 8 14 Fast Attach 185 | 6 2 5 . 1 . 7 8 . . 3 3 . 2 4 3 1 10 7 8 6 6 3 5 1 7 . 15 9 4 7 2 19 10 21 Attach 136 | . 2 4 . 1 2 8 5 2 1 3 1 . 3 8 5 1 5 7 8 4 4 4 3 3 4 1 4 3 2 4 2 9 5 18 Detach 65 | . 1 2 . 2 . 3 3 . . . 2 . 1 . 2 1 2 4 1 4 . 4 1 2 4 . 5 2 1 2 1 5 . 10 Swap 505 | . 5 20 5 3 2 14 16 25 11 9 4 6 21 25 17 11 30 17 9 17 27 13 11 9 14 7 12 9 10 11 11 29 28 47 Drop 336 | . 3 26 2 4 . 7 18 3 6 11 9 5 11 7 16 5 21 6 13 6 19 4 13 2 15 2 11 18 17 7 5 28 13 3 Fire 2928 | . 75 163 8 . 26 104 17 60 17 26 50 20 51 101 72 19 110 64 100 71 66 49 82 31 96 20 103 162 90 189 192 245 183 266 Melee 118 | . . 1 1 . . 6 20 23 15 4 . 3 14 . 9 2 9 1 5 2 3 . . . . . . . . . . . . . Ram 2 | . . . . . . 2 . . . . . . . . . . . . . . . . . . . . . . . . . . . . Kick . | . . . . . . . . . . . . . . . . . . . . . . . . . . . . . . . . . . . Crush 88 | . 5 16 . . 4 . . 3 . . . 3 . 12 1 . . 4 1 5 . . 1 . 2 1 1 7 1 5 . 11 5 . Escape Stasis 103 | . . . . . . . 70 . 14 . . . 1 . . . . . . . 6 . . . . . . . 4 . . . 2 6 Rewire 90 | . . . . . . . . . . . . 1 40 . 2 2 2 . 3 2 32 . 1 . 1 1 . 1 . . 1 1 . . Trap 65 | . . . . . . . . 65 . . . . . . . . . . . . . . . . . . . . . . . . . . Miscellaneous 4 | . . . . . . . . . . . . . . . . . . . . . . . . . . . . . . . . . . 4 Route ------- -11/Scrapyard -10/Materials (discovered 4 exits: *Mat x3 / [*Min]) -9/Materials (discovered 4 exits: *Mat x3 / *Min) -9/Mines (discovered 3 exits: *Mat x2 / *Exi) -9/Exiles -8/Mines -8/Materials (discovered 5 exits: *Fac x3 / *Sto / Gar) -8/Garrison (discovered 3 exits: *Mat x3) -8/Materials (discovered 4 exits: *Fac x2 / *Sto / Gar) -8/Garrison (discovered 3 exits: *Fac x3) -7/Factory (discovered 2 exits: *Low x2) -7/Waste -7/Factory (discovered 2 exits: *Fac / Gar) -7/Garrison (discovered 3 exits: *Fac x3) -7/Factory -7/Garrison (discovered 4 exits: *Fac x3 / *Fac) -7/Factory (discovered 2 exits: *Fac / Gar) -7/Garrison (discovered 3 exits: *Fac x3) -6/Factory -6/Garrison (discovered 3 exits: *Fac x3) -5/Factory (discovered 2 exits: Ext / Gar) -5/Garrison (discovered 3 exits: *Fac x3) -4/Factory -4/Garrison (discovered 4 exits: *Res x3 / *Fac) -4/Factory -4/Garrison (discovered 4 exits: *Res x3 / *Fac) -4/Factory -4/Garrison (discovered 3 exits: *Res x3) -3/Research (discovered 2 exits: Res / Gar) -3/Garrison (discovered 3 exits: *Qua x3) -3/Quarantine (discovered 2 exits: *Res / Gar) -3/Garrison (discovered 3 exits: *Res x3) -2/Research (discovered 2 exits: *Acc / *Tes) -2/Testing -1/Access Tau Ceti IV Orbit History --------- Turn | Location | Event 14 | -11/Scrapyard | Discovered new exit (range 15) 82 | -11/Scrapyard | Entered Materials 300 | -10/Materials | Build established: Mutant 412 | -10/Materials | Discovered new exit (range 7) 630 | -10/Materials | Discovered new exit (range 16) 892 | -10/Materials | Discovered new exit (range 11) 934 | -10/Materials | Core integrity fell below 50% 994 | -10/Materials | Core integrity fell below 20% 1073 | -10/Materials | Discovered new exit (range 5) 1124 | -10/Materials | Entered another Materials area 1124 | -9/Materials | Evolved 2 slots: Propulsion x1, Utility x1 1716 | -9/Materials | Discovered new exit (range 12) 1924 | -9/Materials | Destroyed 7 combat bots 2006 | -9/Materials | Build established: Scavenger-Mutant 2226 | -9/Materials | Discovered new exit (range 5) 2419 | -9/Materials | Learned Storage stockpile data 2496 | -9/Materials | Learned location of Mines (-8) 2562 | -9/Materials | Identified exit to Materials 2562 | -9/Materials | Learned location of 1 exit from Materials 2633 | -9/Materials | Repaired Imp. Assault Rifle 2692 | -9/Materials | Build established: Mutant 2799 | -9/Materials | Central database locked down 2966 | -9/Materials | Repaired Imp. Assault Rifle 3924 | -9/Materials | First assault squad dispatched 5074 | -9/Materials | Sterilization system engaged 5074 | -9/Materials | Non-combat units ordered to evacuate 5135 | -9/Materials | Entered Mines 5139 | -9/Mines | Assisted by bots powering up and referring to "LRC-V3" 5284 | -9/Mines | Discovered exit to Materials (range 6) 5454 | -9/Mines | Learned Materials stockpile data 5465 | -9/Mines | A weapon hastily lodged in a ceiling crevice suddenly fell to the ground 5949 | -9/Mines | Discovered exit to Materials (range 8) 5995 | -9/Mines | Met a Derelict shopkeep closing up shop 6379 | -9/Mines | Deemed a non-threat by the Exiles lab entrance 6379 | -9/Mines | Discovered new exit (range 5) 6388 | -9/Mines | Entered Exiles 6453 | -9/Exiles | Met 8R-AWN 6489 | -9/Exiles | Met EX-HEX 6552 | -9/Exiles | Met EX-BIN 6590 | -9/Exiles | Aligned with FarCom system 6592 | -9/Exiles | Given EX-Vault access code 6650 | -9/Exiles | Opened EX-Vault 6663 | -9/Exiles | Found Skeleton Box 6672 | -9/Exiles | Found Trap Reconfigurator 6681 | -9/Exiles | Found Deploy-a-Sentry 6686 | -9/Exiles | Found Deploy-a-Sentry 6690 | -9/Exiles | Found Deploy-a-Sentry 6739 | -9/Exiles | Warned to stay clear of 0b10 Research branches 6809 | -9/Exiles | Met EX-DEC 6818 | -9/Exiles | Learned location of Zion (-7) 7170 | -9/Exiles | Discovered new exit (range 10) 7193 | -9/Exiles | Stole two prototypes: Trap Reconfigurator, Deploy-a-Sentry 7193 | -9/Exiles | Entered Mines 7196 | -8/Mines | Core integrity fell below 50% 7362 | -8/Mines | Discovered exit to Materials (range 3) 8684 | -8/Mines | Entered Materials 8684 | -8/Materials | Evolved 2 slots: Propulsion x1, Utility x1 8685 | -8/Materials | Identified exit to Factory 8685 | -8/Materials | Identified exit to Storage 8819 | -8/Materials | Lost 3 parts (1u2w) 9558 | -8/Materials | Repaired Arm. Huge Wheel 10017 | -8/Materials | Build established: Scavenger-Mutant 10106 | -8/Materials | Lost 3 parts (1n1u1w) 10204 | -8/Materials | Garrison activated, responded to threat 10271 | -8/Materials | Discovered exit to Factory (range 12) 10321 | -8/Materials | Crushed by falling debris 10493 | -8/Materials | Build established: Mutant 10627 | -8/Materials | Core integrity fell below 50% 10650 | -8/Materials | Learned 4 Lower Caves zone layouts 10762 | -8/Materials | Identified exit to Garrison 10762 | -8/Materials | Entered Garrison 10967 | -8/Garrison | DAS Turret deployed 10969 | -8/Garrison | Triggered checkpoint 10974 | -8/Garrison | Triggered checkpoint 11003 | -8/Garrison | Triggered checkpoint 11140 | -8/Garrison | Rescued a captive Derelict 11158 | -8/Garrison | Discovered new exit (range 12) 11164 | -8/Garrison | Triggered checkpoint 11192 | -8/Garrison | Garrison Relay disabled 11378 | -8/Garrison | Triggered checkpoint 11382 | -8/Garrison | Garrison Relay disabled 11414 | -8/Garrison | Garrison Relay disabled 11487 | -8/Garrison | Discovered new exit (range 13) 11727 | -8/Garrison | Spotted B-75 Beast 12055 | -8/Garrison | Lost 3 parts (1n1u1w) 12435 | -8/Garrison | Installed Relay Interface Framework 12452 | -8/Garrison | Discovered new exit (range 10) 12481 | -8/Garrison | Entered Materials 12501 | -8/Materials | Build established: Scavenger-Mutant 12881 | -8/Materials | First assault squad dispatched 13233 | -8/Materials | Build established: Mutant 13676 | -8/Materials | Build established: Scavenger-Mutant 13761 | -8/Materials | Discovered exit to Factory (range 4) 14164 | -8/Materials | Discovered exit to Storage (range 15) 14209 | -8/Materials | Garrison activated, responded to threat 15326 | -8/Materials | Discovered exit to Factory (range 4) 15522 | -8/Materials | Identified exit to Garrison 15522 | -8/Materials | Entered Garrison 15647 | -8/Garrison | Garrison Relay disabled 15726 | -8/Garrison | DAS Turret deployed 15813 | -8/Garrison | Triggered checkpoint 15974 | -8/Garrison | Triggered checkpoint 16072 | -8/Garrison | Triggered checkpoint 16118 | -8/Garrison | Garrison Relay disabled 16201 | -8/Garrison | Discovered exit to Factory (range 12) 16431 | -8/Garrison | Discovered exit to Factory (range 8) 16444 | -8/Garrison | Triggered checkpoint 16479 | -8/Garrison | Garrison Relay disabled 16657 | -8/Garrison | Phase Generator disabled 16721 | -8/Garrison | Discovered exit to Factory (range 53) 16721 | -8/Garrison | Discovered exit to Factory (range 35) 16721 | -8/Garrison | Discovered exit to Factory (range 20) 16790 | -8/Garrison | Build established: Bothacker-Mutant 16843 | -8/Garrison | Expanded RIF knowledge: Alert ID Control 16918 | -8/Garrison | Entered Factory 16918 | -7/Factory | Evolved 2 slots: Utility x2 16920 | -7/Factory | FarCom data flow suspended 17984 | -7/Factory | Repaired Gatling Laser 18118 | -7/Factory | First assault squad dispatched 18121 | -7/Factory | Identified exit to Lower Caves 18308 | -7/Factory | Sucked down chute 18308 | -7/Factory | Entered Waste 18308 | -7/Waste | The area was eerily silent 19060 | -7/Waste | Discovered new exit (range 10) 19083 | -7/Waste | Entered Factory 19302 | -7/Factory | Discovered new exit (range 11) 19674 | -7/Factory | Identified exit to Garrison 19674 | -7/Factory | Entered Garrison 19674 | -7/Garrison | Accompanied by 2 allies 19742 | -7/Garrison | Triggered checkpoint 19774 | -7/Garrison | Garrison Relay disabled 19823 | -7/Garrison | DAS Turret deployed 19833 | -7/Garrison | Triggered checkpoint 19884 | -7/Garrison | Triggered checkpoint 20154 | -7/Garrison | Expanded RIF knowledge: Signal Jamming 20165 | -7/Garrison | Discovered new exit (range 10) 20330 | -7/Garrison | Triggered checkpoint 20369 | -7/Garrison | Garrison Relay disabled 20480 | -7/Garrison | Discovered new exit (range 10) 20654 | -7/Garrison | Garrison Relay disabled 20733 | -7/Garrison | Discovered new exit (range 14) 21128 | -7/Garrison | Triggered checkpoint 21137 | -7/Garrison | Entered Factory 21137 | -7/Factory | Accompanied by 3 allies 21512 | -7/Factory | Fabricated M-13 Machinist (x1) 21953 | -7/Factory | Cargo convoy interrupted 22099 | -7/Factory | Destroyed 8 combat bots 22337 | -7/Factory | First assault squad dispatched 22441 | -7/Factory | System corruption reached 10% 22473 | -7/Factory | Lost 3 parts (1n1u1w) 22708 | -7/Factory | Fabricated M-13 Machinist? 23058 | -7/Factory | Identified exit to Garrison 23058 | -7/Factory | Entered Garrison 23058 | -7/Garrison | Accompanied by 1 ally 23081 | -7/Garrison | Triggered checkpoint 23105 | -7/Garrison | Garrison Relay disabled 23361 | -7/Garrison | Triggered checkpoint 23361 | -7/Garrison | Triggered checkpoint 23434 | -7/Garrison | Triggered checkpoint 23484 | -7/Garrison | Discovered new exit (range 6) 23666 | -7/Garrison | Discovered new exit (range 15) 23672 | -7/Garrison | Triggered checkpoint 23844 | -7/Garrison | Triggered checkpoint 23914 | -7/Garrison | Triggered checkpoint 23967 | -7/Garrison | Garrison Relay disabled 23982 | -7/Garrison | Triggered checkpoint 23984 | -7/Garrison | Core integrity fell below 50% 24034 | -7/Garrison | Discovered new exit (range 13) 24164 | -7/Garrison | Triggered checkpoint 24207 | -7/Garrison | Expanded RIF knowledge: Threat Obfuscation 24233 | -7/Garrison | Discovered new exit (range 5) 24272 | -7/Garrison | Triggered checkpoint 24295 | -7/Garrison | Garrison Relay disabled 24460 | -7/Garrison | Entered Factory 24460 | -7/Factory | Accompanied by 5 allies 24518 | -7/Factory | Build established: Botlord-Mutant 24813 | -7/Factory | Discovered new exit (range 9) 24833 | -7/Factory | Lost 3 allies 25017 | -7/Factory | Identified exit to Garrison 25043 | -7/Factory | Entered Garrison 25043 | -7/Garrison | Accompanied by 6 allies 25125 | -7/Garrison | Triggered checkpoint 25166 | -7/Garrison | Garrison Relay disabled 25213 | -7/Garrison | Lost 3 allies 25475 | -7/Garrison | Triggered checkpoint 25490 | -7/Garrison | Triggered checkpoint 25562 | -7/Garrison | Lost 3 allies 25708 | -7/Garrison | Garrison Relay disabled 25737 | -7/Garrison | Garrison Relay disabled 25954 | -7/Garrison | Discovered new exit (range 13) 25973 | -7/Garrison | Core integrity fell below 20% 26039 | -7/Garrison | Destroyed 9 combat bots 26128 | -7/Garrison | Triggered checkpoint 26182 | -7/Garrison | Garrison Relay disabled 26237 | -7/Garrison | Triggered checkpoint 26283 | -7/Garrison | Rescued a captive Derelict 26297 | -7/Garrison | Discovered new exit (range 85) 26297 | -7/Garrison | Discovered new exit (range 97) 26297 | -7/Garrison | Discovered new exit (range 26) 26302 | -7/Garrison | Garrison Relay disabled 26773 | -7/Garrison | Triggered checkpoint 26876 | -7/Garrison | Expanded RIF knowledge: Patrol Navigation 26977 | -7/Garrison | Entered Factory 26977 | -6/Factory | Accompanied by 1 ally 26977 | -6/Factory | Evolved 2 slots: Power x1, Weapon x1 27501 | -6/Factory | Repaired Hvy. Missile Launcher 27564 | -6/Factory | Repaired Imp. Heavy Treads 27675 | -6/Factory | Build established: Botlord-Tank 27811 | -6/Factory | Identified exit to Garrison 28115 | -6/Factory | Lost 4 allies 28585 | -6/Factory | Identified exit to Garrison 28585 | -6/Factory | Entered Garrison 28651 | -6/Garrison | Triggered checkpoint 28659 | -6/Garrison | Garrison Relay disabled 28896 | -6/Garrison | Spotted B-75 Beast 28906 | -6/Garrison | Assimilated Beast 5a with formatsys_high 28953 | -6/Garrison | Triggered checkpoint 29055 | -6/Garrison | Discovered new exit (range 10) 29087 | -6/Garrison | Triggered checkpoint 29127 | -6/Garrison | Triggered checkpoint 29157 | -6/Garrison | Garrison Relay disabled 29349 | -6/Garrison | Triggered checkpoint 29354 | -6/Garrison | Triggered checkpoint 29385 | -6/Garrison | Triggered checkpoint 29412 | -6/Garrison | Garrison Relay disabled 29485 | -6/Garrison | Triggered checkpoint 29531 | -6/Garrison | Triggered checkpoint 29610 | -6/Garrison | Discovered new exit (range 3) 29808 | -6/Garrison | Expanded RIF knowledge: Zone Cloak 29828 | -6/Garrison | Discovered new exit (range 12) 29876 | -6/Garrison | Discovered new exit (range 69) 29876 | -6/Garrison | Discovered new exit (range 17) 29876 | -6/Garrison | Discovered new exit (range 54) 29903 | -6/Garrison | Triggered checkpoint 29934 | -6/Garrison | P-60 Hacker assimilated allied 1Q-3SD(l) 30066 | -6/Garrison | Found Hvy. Reactive Plating 30070 | -6/Garrison | Found Hvy. Reactive Plating 30243 | -6/Garrison | Build established: Botlord-Mutant 30403 | -6/Garrison | Garrison Relay disabled 30488 | -6/Garrison | Entered Factory 30488 | -5/Factory | Accompanied by 5 allies 30488 | -5/Factory | Evolved 2 slots: Propulsion x1, Utility x1 30489 | -5/Factory | Identified exit to Extension 30651 | -5/Factory | Lost 5 allies 30879 | -5/Factory | Build established: Botlord-Tank 31102 | -5/Factory | Repaired Cld. Deuterium Engine 31543 | -5/Factory | Garrison activated, responded to threat 32195 | -5/Factory | Identified exit to Garrison 32195 | -5/Factory | Entered Garrison 32269 | -5/Garrison | Garrison Relay disabled 32382 | -5/Garrison | Found Quantum Capacitor 32407 | -5/Garrison | Expanded RIF knowledge: Command Fork 32450 | -5/Garrison | Spotted B-75 Beast 32477 | -5/Garrison | Allies destroyed B-75 Beast 32511 | -5/Garrison | Triggered checkpoint 32529 | -5/Garrison | Triggered checkpoint 32653 | -5/Garrison | Triggered checkpoint 32664 | -5/Garrison | Garrison Relay disabled 32745 | -5/Garrison | Discovered new exit (range 10) 32845 | -5/Garrison | Triggered checkpoint 32891 | -5/Garrison | Spotted B-86 Titan 32901 | -5/Garrison | Spotted B-75 Beast 32903 | -5/Garrison | Assimilated Titan 6a with formatsys_high 32908 | -5/Garrison | Allies destroyed B-75 Beast 32908 | -5/Garrison | Rewired B-90 Cyclops 32911 | -5/Garrison | Rewired B-75 Beast 33106 | -5/Garrison | Triggered checkpoint 33196 | -5/Garrison | Spotted B-75 Beast 33249 | -5/Garrison | Allies destroyed B-75 Beast 33296 | -5/Garrison | Discovered new exit (range 10) 33333 | -5/Garrison | Triggered checkpoint 33510 | -5/Garrison | Garrison Relay disabled 33780 | -5/Garrison | Discovered new exit (range 12) 33823 | -5/Garrison | Triggered checkpoint 33852 | -5/Garrison | Garrison Relay disabled 33975 | -5/Garrison | Garrison Relay disabled 34036 | -5/Garrison | Entered Factory 34036 | -4/Factory | Accompanied by 7 allies 34036 | -4/Factory | Evolved 2 slots: Propulsion x1, Utility x1 34126 | -4/Factory | Garrison activated, responded to threat 34213 | -4/Factory | Identified exit to Garrison 34403 | -4/Factory | Destroyed 9 combat bots 35190 | -4/Factory | Identified exit to Garrison 35220 | -4/Factory | Entered Garrison 35220 | -4/Garrison | Accompanied by 4 allies 35490 | -4/Garrison | Found Relay Coupler [Proto] 35526 | -4/Garrison | Triggered checkpoint 35536 | -4/Garrison | Garrison Relay disabled 35597 | -4/Garrison | Spotted B-86 Titan 35637 | -4/Garrison | Assimilated Titan 7a with formatsys_high 35649 | -4/Garrison | Triggered checkpoint 35656 | -4/Garrison | Triggered checkpoint 35716 | -4/Garrison | Triggered checkpoint 35765 | -4/Garrison | Triggered checkpoint 35863 | -4/Garrison | Triggered checkpoint 35970 | -4/Garrison | Discovered new exit (range 9) 36178 | -4/Garrison | Triggered checkpoint 36213 | -4/Garrison | Discovered new exit (range 10) 36642 | -4/Garrison | Expanded RIF knowledge: Code Merge 36691 | -4/Garrison | Discovered new exit (range 10) 36694 | -4/Garrison | Triggered checkpoint 36722 | -4/Garrison | Triggered checkpoint 36767 | -4/Garrison | Garrison Relay disabled 36886 | -4/Garrison | Destroyed Cyclops 6a 36966 | -4/Garrison | Triggered checkpoint 37000 | -4/Garrison | Discovered new exit (range 3) 37028 | -4/Garrison | Entered Factory 37028 | -4/Factory | Accompanied by 6 allies 37067 | -4/Factory | Fabricated M-13 Machinist (x1) 37282 | -4/Factory | Lost 4 allies 37472 | -4/Factory | Identified exit to Garrison 37546 | -4/Factory | Garrison activated, responded to threat 37634 | -4/Factory | Entered Garrison 37634 | -4/Garrison | Accompanied by 2 allies 37662 | -4/Garrison | Expanded RIF knowledge: Program Shield 37686 | -4/Garrison | Triggered checkpoint 37733 | -4/Garrison | Garrison Relay disabled 37796 | -4/Garrison | Triggered checkpoint 37855 | -4/Garrison | Discovered new exit (range 6) 37996 | -4/Garrison | Garrison Relay disabled 38065 | -4/Garrison | Triggered checkpoint 38110 | -4/Garrison | Triggered checkpoint 38114 | -4/Garrison | Lost 3 allies 38126 | -4/Garrison | Triggered checkpoint 38142 | -4/Garrison | Triggered checkpoint 38177 | -4/Garrison | Destroyed 8 combat bots 38201 | -4/Garrison | Expanded RIF knowledge: Hotswap 38270 | -4/Garrison | Rewired B-75 Beast 38280 | -4/Garrison | Spotted B-75 Beast 38281 | -4/Garrison | Spotted B-86 Titan 38349 | -4/Garrison | Discovered new exit (range 10) 38401 | -4/Garrison | Garrison Relay disabled 38532 | -4/Garrison | Found Gamma Bomb Array 38535 | -4/Garrison | Found Gamma Bomb Array 38567 | -4/Garrison | Discovered new exit (range 10) 38634 | -4/Garrison | Triggered checkpoint 38680 | -4/Garrison | Garrison Relay disabled 38857 | -4/Garrison | Lost 3 allies 38927 | -4/Garrison | Destroyed 7 combat bots 39044 | -4/Garrison | Discovered new exit (range 8) 39244 | -4/Garrison | Entered Factory 39244 | -4/Factory | Accompanied by 1 ally 39919 | -4/Factory | Spotted B-86 Titan 39981 | -4/Factory | Identified exit to Garrison 39981 | -4/Factory | Entered Garrison 39981 | -4/Garrison | Accompanied by 1 ally 40055 | -4/Garrison | Triggered checkpoint 40230 | -4/Garrison | Rescued a captive Derelict 40250 | -4/Garrison | Garrison Relay disabled 40266 | -4/Garrison | Triggered checkpoint 40342 | -4/Garrison | Destroyed 7 combat bots 40529 | -4/Garrison | Spotted B-86 Titan 40576 | -4/Garrison | Destroyed B-86 Titan 40685 | -4/Garrison | Triggered checkpoint 40803 | -4/Garrison | Triggered checkpoint 40851 | -4/Garrison | Garrison Relay disabled 40899 | -4/Garrison | Discovered new exit (range 12) 41047 | -4/Garrison | Triggered checkpoint 41131 | -4/Garrison | Expanded RIF knowledge: Command Fork 41216 | -4/Garrison | Discovered new exit (range 13) 41245 | -4/Garrison | Spotted Executioner 41255 | -4/Garrison | Rewired Executioner 41383 | -4/Garrison | Triggered checkpoint 41407 | -4/Garrison | Garrison Relay disabled 41481 | -4/Garrison | Discovered new exit (range 8) 41696 | -4/Garrison | Garrison Relay disabled 41806 | -4/Garrison | Entered Research 41806 | -3/Research | Accompanied by 1 ally 41806 | -3/Research | Evolved 2 slots: Power x1, Utility x1 42417 | -3/Research | Found Fusion Bomb Launcher 42483 | -3/Research | Lost 3 allies 42508 | -3/Research | Cargo convoy interrupted 43500 | -3/Research | System corruption reached 10% 43571 | -3/Research | Found Launcher Loader 43740 | -3/Research | Discovered new exit (range 29) 44217 | -3/Research | P-80 Master assimilated allied Artificer 8a 44298 | -3/Research | Identified exit to Garrison 44298 | -3/Research | Entered Garrison 44298 | -3/Garrison | Warlord forces raided the area 44298 | -3/Garrison | Accompanied by 5 allies 44362 | -3/Garrison | Triggered checkpoint 44370 | -3/Garrison | Triggered checkpoint 44394 | -3/Garrison | Triggered checkpoint 44411 | -3/Garrison | Lost 3 allies 44421 | -3/Garrison | Garrison Relay disabled 44440 | -3/Garrison | Triggered checkpoint 44498 | -3/Garrison | Triggered checkpoint 44603 | -3/Garrison | Lost 7 allies 44631 | -3/Garrison | Discovered new exit (range 12) 44647 | -3/Garrison | Triggered checkpoint 44664 | -3/Garrison | Garrison Relay disabled 44742 | -3/Garrison | Expanded RIF knowledge: Command Fork 44787 | -3/Garrison | Warlord forces retreated 44878 | -3/Garrison | Triggered checkpoint 44904 | -3/Garrison | Found embedded Infiltrators 44913 | -3/Garrison | Garrison Relay disabled 44926 | -3/Garrison | Triggered checkpoint 45056 | -3/Garrison | Discovered new exit (range 14) 45062 | -3/Garrison | Spotted B-75 Beast 45078 | -3/Garrison | Allies destroyed B-75 Beast 45095 | -3/Garrison | Spotted B-86 Titan 45119 | -3/Garrison | Allies destroyed B-86 Titan 45122 | -3/Garrison | Rewired B-75 Beast 45277 | -3/Garrison | Found Unknown Device 45277 | -3/Garrison | Identified Adv. Force Booster 45496 | -3/Garrison | Garrison Relay disabled 45830 | -3/Garrison | Triggered checkpoint 45852 | -3/Garrison | Garrison Relay disabled 45959 | -3/Garrison | Discovered new exit (range 12) 45986 | -3/Garrison | Entered Quarantine 45986 | -3/Quarantine | Accompanied by 6 allies 46136 | -3/Quarantine | Spotted Alpha 7 46177 | -3/Quarantine | Destroyed Alpha 7 46203 | -3/Quarantine | Scanned by Researcher 46259 | -3/Quarantine | Lost 3 allies 46325 | -3/Quarantine | Found Alien Artifact 46562 | -3/Quarantine | Garrison activated, responded to threat 47003 | -3/Quarantine | Discovered new exit (range 14) 47468 | -3/Quarantine | Met incapacitated Sigix Warrior 47468 | -3/Quarantine | Lockdown squad dispatched 47475 | -3/Quarantine | Acquired the access code to the Sigix quarantine chamber 47478 | -3/Quarantine | Unlocked Sigix quarantine chamber 47487 | -3/Quarantine | Found Sigix Containment Pod 47516 | -3/Quarantine | Spotted Lightning 47517 | -3/Quarantine | Spotted Lightning 47535 | -3/Quarantine | System corruption reached 30% 47535 | -3/Quarantine | Spotted Lightning 47554 | -3/Quarantine | Destroyed Lightning 47571 | -3/Quarantine | Destroyed Lightning 47589 | -3/Quarantine | Destroyed Lightning 47758 | -3/Quarantine | Identified exit to Garrison 47772 | -3/Quarantine | Entered Garrison 47854 | -3/Garrison | Garrison Relay disabled 47884 | -3/Garrison | Triggered checkpoint 47903 | -3/Garrison | Triggered checkpoint 47950 | -3/Garrison | Triggered checkpoint 48150 | -3/Garrison | P-80 Master assimilated allied Champion 8c 48174 | -3/Garrison | Spotted B-86 Titan 48228 | -3/Garrison | Lost 8 allies 48259 | -3/Garrison | Assimilated Titan 8a with formatsys_high 48349 | -3/Garrison | Triggered checkpoint 48504 | -3/Garrison | Triggered checkpoint 48544 | -3/Garrison | Build established: Scavenger-Tank 48596 | -3/Garrison | Garrison Relay disabled 48600 | -3/Garrison | Triggered checkpoint 48658 | -3/Garrison | Triggered checkpoint 48663 | -3/Garrison | Discovered new exit (range 14) 48920 | -3/Garrison | Build established: Botlord-Tank 48935 | -3/Garrison | Rescued a captive Derelict 48937 | -3/Garrison | Rescued a captive Derelict 48942 | -3/Garrison | Discovered new exit (range 5) 48964 | -3/Garrison | Triggered checkpoint 49027 | -3/Garrison | Garrison Relay disabled 49203 | -3/Garrison | Discovered new exit (range 13) 49276 | -3/Garrison | Expanded RIF knowledge: Code Merge 49402 | -3/Garrison | Entered Research 49402 | -2/Research | Evolved 2 slots: Utility x2 49649 | -2/Research | Spotted B-90 Cyclops 49652 | -2/Research | Assimilated Cyclops 9a with formatsys_high 49882 | -2/Research | Lost 6 allies 49911 | -2/Research | Spotted B-90 Cyclops 49950 | -2/Research | Destroyed B-90 Cyclops 50240 | -2/Research | Discovered new exit (range 8) 50312 | -2/Research | Lost 3 allies 50402 | -2/Research | First assault squad dispatched 50483 | -2/Research | System corruption reached 10% 50651 | -2/Research | Build established: Scavenger-Tank 52550 | -2/Research | Discovered new exit (range 12) 53134 | -2/Research | Entered Testing 53218 | -2/Testing | System corruption reached 30% 53724 | -2/Testing | P-80 Master assimilated allied Smith 9a 53726 | -2/Testing | P-80 Master assimilated allied Serf 9a 53884 | -2/Testing | First assault squad dispatched 54075 | -2/Testing | Spotted Striker 54082 | -2/Testing | Destroyed 8 combat bots 54242 | -2/Testing | Found Prototype Ballistic Gun 54331 | -2/Testing | Found Prototype Energy Cannon 54331 | -2/Testing | Identified Null Cannon 54482 | -2/Testing | Destroyed 8 combat bots 54658 | -2/Testing | Spotted PP-OACJT4OS74 54665 | -2/Testing | PP-OACJT4OS74 assimilated allied Artificer 9a 54689 | -2/Testing | Destroyed PP-OACJT4OS74 54720 | -2/Testing | Destroyed 10 combat bots 54736 | -2/Testing | Discovered new exit (range 14) 55182 | -2/Testing | Destroyed 8 combat bots 55183 | -2/Testing | Identified Hyp. Multirail 55262 | -2/Testing | Entered Access 55262 | -1/Access | Evolved 2 slots: Power x1, Utility x1 55512 | -1/Access | First assault squad dispatched 55525 | -1/Access | Garrison activated, responded to threat 55564 | -1/Access | Build established: Generator-Tank 55576 | -1/Access | Destroyed 8 combat bots 55695 | -1/Access | Crushed by falling debris 55726 | -1/Access | Lost 4 parts (2p2u) 55800 | -1/Access | Destroyed 9 combat bots 55835 | -1/Access | System corruption reached 10% 55935 | -1/Access | Identified Subatomic Replicator 55935 | -1/Access | Used Subatomic Replicator to replicate Gamma Bomb Array 57235 | -1/Access | Destroyed 8 combat bots 57457 | -1/Access | System corruption reached 30% 57460 | -1/Access | High security lockdown imminent 57540 | -1/Access | High security lockdown engaged 57925 | -1/Access | Spotted Investigator 57927 | -1/Access | Destroyed Investigator 57952 | -1/Access | Destroyed 10 combat bots 57990 | -1/Access | Build established: Scavenger-Tank 58021 | -1/Access | Destroyed Investigator 58061 | -1/Access | Destroyed 17 combat bots 58074 | -1/Access | Sterilization system engaged 58098 | -1/Access | Destroyed 10 combat bots 58132 | -1/Access | Spotted Striker 58139 | -1/Access | Destroyed Striker 58161 | -1/Access | Destroyed 14 combat bots 58209 | -1/Access | Destroyed Striker 58224 | -1/Access | Spotted Striker 58227 | -1/Access | Destroyed Striker 58248 | -1/Access | Destroyed 10 combat bots 58279 | -1/Access | Spotted Striker 58279 | -1/Access | Spotted Striker 58283 | -1/Access | Destroyed Striker 58289 | -1/Access | Destroyed Striker 58312 | -1/Access | Destroyed 8 combat bots 58374 | -1/Access | Ambient heat levels rising (+10) 58524 | -1/Access | Ambient heat levels rising (+10) 58674 | -1/Access | Ambient heat levels rising (+10) 58800 | -1/Access | Build established: Scavenger-Mutant 58824 | -1/Access | Ambient heat levels rising (+10) 58946 | -1/Access | Spotted B-99 Colossus 58974 | -1/Access | Ambient heat levels rising (+10) 59124 | -1/Access | Ambient heat levels rising (+10) 59257 | -1/Access | Found Fusion Bomb Launcher 59274 | -1/Access | Ambient heat levels rising (+10) 59424 | -1/Access | Ambient heat levels rising (+10) 59551 | -1/Access | Energy Cycler disabled 59574 | -1/Access | Ambient heat levels rising (+10) 59662 | -1/Access | Build established: Generator-Mutant 59724 | -1/Access | Ambient heat levels rising (+10) 59757 | -1/Access | Discovered new exit (range 6) 59874 | -1/Access | Ambient heat levels rising (+10) 60024 | -1/Access | Ambient heat levels rising (+10) 60174 | -1/Access | Ambient heat levels rising (+10) 60324 | -1/Access | Ambient heat levels rising (+10) 60474 | -1/Access | Ambient heat levels rising (+10) 60624 | -1/Access | Ambient heat levels rising (+10) 60774 | -1/Access | Ambient heat levels rising (+10) 60924 | -1/Access | Ambient heat levels rising (+10) 61074 | -1/Access | Ambient heat levels rising (+10) 61224 | -1/Access | Ambient heat levels rising (+10) 61374 | -1/Access | Ambient heat levels rising (+10) 61524 | -1/Access | Ambient heat levels rising (+10) 61540 | *** | Destroyed 0b10! Last Messages --------------- 61242_ System corrupted: Component data lost. 61259_ System corrupted: FCS attempts to trigger Null Cannon. 61259_ System corrupted: Null Cannon misfires. 61275_ System corrupted: Component data lost. 61307_ System corrupted: Heat flow error (+222). 61324_ System corrupted: Energy discharge (-218). 61340_ System corrupted: FCS attempts to trigger Null Cannon. 61340_ System corrupted: Null Cannon misfires. 61355_ System corrupted: Component data lost. 61374_ ALERT: Ambient heat levels +10. 61404_ DHBOA6PGKCPVQKEZ48HNLA6B&76 61503_ System corrupted: IFF burst signal emitted. 61524_ ALERT: Ambient heat levels +10. 61538_ 7IT